Workbook

Sheet Sheet1
A1: Written by: Bob Mellinger | AH1: Written by: Bob Mellinger
A2: W6621 W38th Ave. | AH2: W6621 W38th Ave.
A3: Menominee MI 49858 | B3: 906-863-5397 | AH3: Menominee MI 49858 | AI3: 906-863-5397
A4: 2015 Thunder Invite
A5: Crystal Springs G.C.; August 14, 2015; Par 72
C7: =IF(C8="","Warning: Make sure you enter the par for each hole below.","") -> 
B8: Par | C8: 5 | D8: 4 | E8: 4 | F8: 4 | G8: 3 | H8: 4 | I8: 4 | J8: 3 | K8: 5 | L8: =SUM(C8:K8) -> 36 | M8: 5 | N8: 3 | O8: 4 | P8: 4 | Q8: 4 | R8: 4 | S8: 4 | T8: 3 | U8: 5 | V8: =SUM(M8:U8) -> 36 | W8: =L8+V8 -> 72
A9: Appleton East | B9: Hole | C9: 1 | D9: 2 | E9: 3 | F9: 4 | G9: 5 | H9: 6 | I9: 7 | J9: 8 | K9: 9 | L9: out | M9: 10 | N9: 11 | O9: 12 | P9: 13 | Q9: 14 | R9: 15 | S9: 16 | T9: 17 | U9: 18 | V9: in | W9: Total
A10: Amanda Guzman | B10: AE | C10: 7 | D10: 7 | E10: 6 | F10: 5 | G10: 5 | H10: 6 | I10: 6 | J10: 5 | K10: 11 | L10: =SUM(C10:K10) -> 58 | M10: 8 | N10: 4 | O10: 5 | P10: 5 | Q10: 5 | R10: 6 | S10: 5 | T10: 4 | U10: 7 | V10: =IF(U10>"a",U10,SUM(M10:U10)) -> 49 | W10: =IF(V10>"a",V10,L10+V10) -> 107
A11: Jasmine Lee | B11: =IF(B10="","",B10) -> AE | C11: 5 | D11: 6 | E11: 4 | F11: 11 | G11: 4 | H11: 8 | I11: 6 | J11: 5 | K11: 8 | L11: 57 | M11: 12 | N11: 5 | O11: 7 | P11: 9 | Q11: 5 | R11: 7 | S11: 6 | T11: 4 | U11: 8 | V11: =IF(U11>"a",U11,SUM(M11:U11)) -> 63 | W11: =IF(V11>"a",V11,L11+V11) -> 120 | X11: Total
A12: Brianna Knigge | B12: =B11 -> AE | C12: 8 | D12: 7 | E12: 7 | F12: 8 | G12: 5 | H12: 6 | I12: 7 | J12: 5 | K12: 6 | L12: 59 | M12: 6 | N12: 4 | O12: 8 | P12: 5 | Q12: 6 | R12: 7 | S12: 8 | T12: 8 | U12: 11 | V12: =IF(U12>"a",U12,SUM(M12:U12)) -> 63 | W12: =IF(V12>"a",V12,L12+V12) -> 122 | X12: =IF(COUNT(W10:W14)<=3,"DQ",IF(COUNT(W10:W14)=4,SUM(W10:W14),SUM(W10:W14)-MAX(W10:W14))) -> 442
A13: Olivia Riechardt | B13: =B12 -> AE | C13: 8 | D13: 6 | E13: 6 | F13: 6 | G13: 4 | H13: 6 | I13: 6 | J13: 5 | K13: 7 | L13: 54 | M13: 8 | N13: 3 | O13: 6 | P13: 5 | Q13: 5 | R13: 6 | S13: 5 | T13: 4 | U13: 5 | V13: =IF(U13>"a",U13,SUM(M13:U13)) -> 47 | W13: =IF(V13>"a",V13,L13+V13) -> 101
A14: Annika Schumerth | B14: =B13 -> AE | C14: 8 | D14: 7 | E14: 5 | F14: 5 | G14: 3 | H14: 7 | I14: 8 | J14: 4 | K14: 8 | L14: 55 | M14: 7 | N14: 5 | O14: 8 | P14: 8 | Q14: 5 | R14: 5 | S14: 8 | T14: 6 | U14: 7 | V14: =IF(U14>"a",U14,SUM(M14:U14)) -> 59 | W14: =IF(V14>"a",V14,L14+V14) -> 114
A15: Team Bestball | B15: =B14 -> AE | C15: =MIN(C10:C14) -> 5 | D15: 6 | E15: 4 | F15: 5 | G15: 3 | H15: 6 | I15: 6 | J15: 4 | K15: 6 | L15: 45 | M15: =MIN(M10:M14) -> 6 | N15: 3 | O15: 5 | P15: 5 | Q15: 5 | R15: 5 | S15: 5 | T15: 4 | U15: 5 | V15: =SUM(M15:U15) -> 43 | W15: =L15+V15 -> 88
A17: Ashwaubenon | B17: Hole | C17: 1 | D17: 2 | E17: 3 | F17: 4 | G17: 5 | H17: 6 | I17: 7 | J17: 8 | K17: 9 | L17: out | M17: 10 | N17: 11 | O17: 12 | P17: 13 | Q17: 14 | R17: 15 | S17: 16 | T17: 17 | U17: 18 | V17: in | W17: Total
A18: Kayley Sjholm | B18: Ash | C18: 5 | D18: 5 | E18: 5 | F18: 5 | G18: 4 | H18: 6 | I18: 6 | J18: 4 | K18: 7 | L18: =SUM(C18:K18) -> 47 | M18: 7 | N18: 4 | O18: 5 | P18: 5 | Q18: 5 | R18: 6 | S18: 5 | T18: 4 | U18: 7 | V18: =IF(U18>"a",U18,SUM(M18:U18)) -> 48 | W18: =IF(V18>"a",V18,L18+V18) -> 95
A19: Breanna Schmit | B19: =IF(B18="","",B18) -> Ash | C19: 5 | D19: 5 | E19: 4 | F19: 5 | G19: 3 | H19: 5 | I19: 6 | J19: 4 | K19: 8 | L19: 45 | M19: 5 | N19: 4 | O19: 5 | P19: 7 | Q19: 6 | R19: 7 | S19: 6 | T19: 3 | U19: 8 | V19: =IF(U19>"a",U19,SUM(M19:U19)) -> 51 | W19: =IF(V19>"a",V19,L19+V19) -> 96 | X19: Total
A20: Mckenna Morrow | B20: =B19 -> Ash | C20: 7 | D20: 6 | E20: 12 | F20: 5 | G20: 4 | H20: 7 | I20: 7 | J20: 5 | K20: 9 | L20: 62 | M20: 10 | N20: 5 | O20: 7 | P20: 8 | Q20: 5 | R20: 6 | S20: 6 | T20: 4 | U20: 9 | V20: =IF(U20>"a",U20,SUM(M20:U20)) -> 60 | W20: =IF(V20>"a",V20,L20+V20) -> 122 | X20: =IF(COUNT(W18:W22)<=3,"DQ",IF(COUNT(W18:W22)=4,SUM(W18:W22),SUM(W18:W22)-MAX(W18:W22))) -> 427
A21: Lindsay Zabel | B21: =B20 -> Ash | C21: 8 | D21: 5 | E21: 6 | F21: 6 | G21: 5 | H21: 8 | I21: 8 | J21: 5 | K21: 6 | L21: 57 | M21: 7 | N21: 4 | O21: 6 | P21: 4 | Q21: 7 | R21: 7 | S21: 7 | T21: 7 | U21: 8 | V21: =IF(U21>"a",U21,SUM(M21:U21)) -> 57 | W21: =IF(V21>"a",V21,L21+V21) -> 114
A22: Zion Estano | B22: =B21 -> Ash | C22: 13 | D22: 6 | E22: 5 | F22: 6 | G22: 9 | H22: 7 | I22: 10 | J22: 5 | K22: 8 | L22: 69 | M22: 9 | N22: 7 | O22: 10 | P22: 7 | Q22: 8 | R22: 6 | S22: 9 | T22: 4 | U22: 8 | V22: =IF(U22>"a",U22,SUM(M22:U22)) -> 68 | W22: =IF(V22>"a",V22,L22+V22) -> 137
A23: Team Bestball | B23: =B22 -> Ash | C23: =MIN(C18:C22) -> 5 | D23: 5 | E23: 4 | F23: 5 | G23: 3 | H23: 5 | I23: 6 | J23: 4 | K23: 6 | L23: 43 | M23: =MIN(M18:M22) -> 5 | N23: 4 | O23: 5 | P23: 4 | Q23: 5 | R23: 6 | S23: 5 | T23: 3 | U23: 7 | V23: =SUM(M23:U23) -> 44 | W23: =L23+V23 -> 87
A25: Bayport | B25: Hole | C25: 1 | D25: 2 | E25: 3 | F25: 4 | G25: 5 | H25: 6 | I25: 7 | J25: 8 | K25: 9 | L25: out | M25: 10 | N25: 11 | O25: 12 | P25: 13 | Q25: 14 | R25: 15 | S25: 16 | T25: 17 | U25: 18 | V25: in | W25: Total
A26: Brianna Schermitzier | B26: BP | C26: 5 | D26: 5 | E26: 5 | F26: 5 | G26: 4 | H26: 6 | I26: 6 | J26: 6 | K26: 7 | L26: =SUM(C26:K26) -> 49 | M26: 6 | N26: 4 | O26: 8 | P26: 5 | Q26: 6 | R26: 6 | S26: 5 | T26: 5 | U26: 7 | V26: =IF(U26>"a",U26,SUM(M26:U26)) -> 52 | W26: =IF(V26>"a",V26,L26+V26) -> 101
A27: Emme Hilbert | B27: =IF(B26="","",B26) -> BP | C27: 8 | D27: 6 | E27: 4 | F27: 8 | G27: 5 | H27: 7 | I27: 7 | J27: 5 | K27: 7 | L27: 57 | M27: 11 | N27: 4 | O27: 5 | P27: 5 | Q27: 6 | R27: 6 | S27: 10 | T27: 4 | U27: 6 | V27: =IF(U27>"a",U27,SUM(M27:U27)) -> 57 | W27: =IF(V27>"a",V27,L27+V27) -> 114 | X27: Total
A28: Madison Kostrrman | B28: =B27 -> BP | C28: 12 | D28: 8 | E28: 7 | F28: 6 | G28: 4 | H28: 11 | I28: 11 | J28: 5 | K28: 6 | L28: 70 | M28: 6 | N28: 6 | O28: 5 | P28: 7 | Q28: 5 | R28: 8 | S28: 5 | T28: 9 | U28: 11 | V28: =IF(U28>"a",U28,SUM(M28:U28)) -> 62 | W28: =IF(V28>"a",V28,L28+V28) -> 132 | X28: =IF(COUNT(W26:W30)<=3,"DQ",IF(COUNT(W26:W30)=4,SUM(W26:W30),SUM(W26:W30)-MAX(W26:W30))) -> 479
A29: Kaela Kosterman | B29: =B28 -> BP | C29: 10 | D29: 7 | E29: 10 | F29: 10 | G29: 5 | H29: 6 | I29: 8 | J29: 7 | K29: 8 | L29: 71 | M29: 9 | N29: 5 | O29: 9 | P29: 7 | Q29: 5 | R29: 6 | S29: 7 | T29: 4 | U29: 9 | V29: =IF(U29>"a",U29,SUM(M29:U29)) -> 61 | W29: =IF(V29>"a",V29,L29+V29) -> 132
B30: =B29 -> BP | L30: 0 | U30: dq | V30: =IF(U30>"a",U30,SUM(M30:U30)) -> dq | W30: =IF(V30>"a",V30,L30+V30) -> dq
A31: Team Bestball | B31: =B30 -> BP | C31: =MIN(C26:C30) -> 5 | D31: 5 | E31: 4 | F31: 5 | G31: 4 | H31: 6 | I31: 6 | J31: 5 | K31: 6 | L31: 46 | M31: =MIN(M26:M30) -> 6 | N31: 4 | O31: 5 | P31: 5 | Q31: 5 | R31: 6 | S31: 5 | T31: 4 | U31: 6 | V31: =SUM(M31:U31) -> 46 | W31: =L31+V31 -> 92
A33: DePere | B33: Hole | C33: 1 | D33: 2 | E33: 3 | F33: 4 | G33: 5 | H33: 6 | I33: 7 | J33: 8 | K33: 9 | L33: out | M33: 10 | N33: 11 | O33: 12 | P33: 13 | Q33: 14 | R33: 15 | S33: 16 | T33: 17 | U33: 18 | V33: in | W33: Total
A34: Megan Growt | B34: DP | C34: 6 | D34: 4 | E34: 4 | F34: 4 | G34: 3 | H34: 8 | I34: 4 | J34: 3 | K34: 7 | L34: =SUM(C34:K34) -> 43 | M34: 5 | N34: 4 | O34: 4 | P34: 4 | Q34: 3 | R34: 4 | S34: 5 | T34: 2 | U34: 5 | V34: =IF(U34>"a",U34,SUM(M34:U34)) -> 36 | W34: =IF(V34>"a",V34,L34+V34) -> 79
A35: Sara Jorgenson | B35: =IF(B34="","",B34) -> DP | C35: 5 | D35: 3 | E35: 4 | F35: 4 | G35: 4 | H35: 6 | I35: 5 | J35: 3 | K35: 6 | L35: 40 | M35: 8 | N35: 3 | O35: 5 | P35: 4 | Q35: 6 | R35: 6 | S35: 5 | T35: 3 | U35: 7 | V35: =IF(U35>"a",U35,SUM(M35:U35)) -> 47 | W35: =IF(V35>"a",V35,L35+V35) -> 87 | X35: Total
A36: Maddie Brosteau | B36: =B35 -> DP | C36: 8 | D36: 5 | E36: 6 | F36: 4 | G36: 3 | H36: 5 | I36: 5 | J36: 5 | K36: 8 | L36: 49 | M36: 6 | N36: 5 | O36: 5 | P36: 5 | Q36: 5 | R36: 6 | S36: 8 | T36: 3 | U36: 6 | V36: =IF(U36>"a",U36,SUM(M36:U36)) -> 49 | W36: =IF(V36>"a",V36,L36+V36) -> 98 | X36: =IF(COUNT(W34:W38)<=3,"DQ",IF(COUNT(W34:W38)=4,SUM(W34:W38),SUM(W34:W38)-MAX(W34:W38))) -> 367
A37: Olivia Kowalkowski | B37: =B36 -> DP | C37: 6 | D37: 5 | E37: 6 | F37: 5 | G37: 6 | H37: 7 | I37: 5 | J37: 5 | K37: 7 | L37: =SUM(C37:K37) -> 52 | M37: 6 | N37: 4 | O37: 6 | P37: 5 | Q37: 6 | R37: 7 | S37: 7 | T37: 3 | U37: 7 | V37: =IF(U37>"a",U37,SUM(M37:U37)) -> 51 | W37: =IF(V37>"a",V37,L37+V37) -> 103
A38: Amanda Scott | B38: =B37 -> DP | C38: 7 | D38: 5 | E38: 7 | F38: 7 | G38: 5 | H38: 5 | I38: 7 | J38: 4 | K38: 9 | L38: 56 | M38: 7 | N38: 4 | O38: 4 | P38: 6 | Q38: 5 | R38: 5 | S38: 5 | T38: 3 | U38: 8 | V38: =IF(U38>"a",U38,SUM(M38:U38)) -> 47 | W38: =IF(V38>"a",V38,L38+V38) -> 103
A39: Team Bestball | B39: =B38 -> DP | C39: =MIN(C34:C38) -> 5 | D39: 3 | E39: 4 | F39: 4 | G39: 3 | H39: 5 | I39: 4 | J39: 3 | K39: 6 | L39: 37 | M39: =MIN(M34:M38) -> 5 | N39: 3 | O39: 4 | P39: 4 | Q39: 3 | R39: 4 | S39: 5 | T39: 2 | U39: 5 | V39: =SUM(M39:U39) -> 35 | W39: =L39+V39 -> 72
A41: Fox Valley Luth | B41: Hole | C41: 1 | D41: 2 | E41: 3 | F41: 4 | G41: 5 | H41: 6 | I41: 7 | J41: 8 | K41: 9 | L41: out | M41: 10 | N41: 11 | O41: 12 | P41: 13 | Q41: 14 | R41: 15 | S41: 16 | T41: 17 | U41: 18 | V41: in | W41: Total
A42: Erika Priebe | B42: FVL | C42: 8 | D42: 5 | E42: 3 | F42: 5 | G42: 3 | H42: 4 | I42: 5 | J42: 4 | K42: 6 | L42: =SUM(C42:K42) -> 43 | M42: 5 | N42: 3 | O42: 5 | P42: 7 | Q42: 4 | R42: 5 | S42: 6 | T42: 5 | U42: 6 | V42: =IF(U42>"a",U42,SUM(M42:U42)) -> 46 | W42: =IF(V42>"a",V42,L42+V42) -> 89
A43: Trystin Kluess | B43: =IF(B42="","",B42) -> FVL | C43: 5 | D43: 5 | E43: 5 | F43: 4 | G43: 4 | H43: 5 | I43: 4 | J43: 3 | K43: 6 | L43: 41 | M43: 6 | N43: 3 | O43: 4 | P43: 4 | Q43: 4 | R43: 5 | S43: 6 | T43: 4 | U43: 6 | V43: =IF(U43>"a",U43,SUM(M43:U43)) -> 42 | W43: =IF(V43>"a",V43,L43+V43) -> 83 | X43: Total
A44: Megan Glaeser | B44: =B43 -> FVL | C44: 5 | D44: 5 | E44: 4 | F44: 5 | G44: 3 | H44: 5 | I44: 5 | J44: 3 | K44: 6 | L44: 41 | M44: 6 | N44: 3 | O44: 5 | P44: 5 | Q44: 6 | R44: 5 | S44: 4 | T44: 3 | U44: 6 | V44: =IF(U44>"a",U44,SUM(M44:U44)) -> 43 | W44: =IF(V44>"a",V44,L44+V44) -> 84 | X44: =IF(COUNT(W42:W46)<=3,"DQ",IF(COUNT(W42:W46)=4,SUM(W42:W46),SUM(W42:W46)-MAX(W42:W46))) -> 350
A45: Alicia Gorges | B45: =B44 -> FVL | C45: 6 | D45: 4 | E45: 6 | F45: 4 | G45: 4 | H45: 6 | I45: 5 | J45: 4 | K45: 6 | L45: 45 | M45: 6 | N45: 5 | O45: 6 | P45: 6 | Q45: 5 | R45: 4 | S45: 5 | T45: 5 | U45: 7 | V45: =IF(U45>"a",U45,SUM(M45:U45)) -> 49 | W45: =IF(V45>"a",V45,L45+V45) -> 94
A46: Liz Santos | B46: =B45 -> FVL | C46: 8 | D46: 7 | E46: 9 | F46: 6 | G46: 4 | H46: 7 | I46: 5 | J46: 7 | K46: 8 | L46: 61 | M46: 8 | N46: 4 | O46: 5 | P46: 8 | Q46: 6 | R46: 8 | S46: 8 | T46: 5 | U46: 10 | V46: =IF(U46>"a",U46,SUM(M46:U46)) -> 62 | W46: =IF(V46>"a",V46,L46+V46) -> 123
A47: Team Bestball | B47: =B46 -> FVL | C47: =MIN(C42:C46) -> 5 | D47: 4 | E47: 3 | F47: 4 | G47: 3 | H47: 4 | I47: 4 | J47: 3 | K47: 6 | L47: 36 | M47: =MIN(M42:M46) -> 5 | N47: 3 | O47: 4 | P47: 4 | Q47: 4 | R47: 4 | S47: 4 | T47: 3 | U47: 6 | V47: =SUM(M47:U47) -> 37 | W47: =L47+V47 -> 73
A49: Freedom | B49: Hole | C49: 1 | D49: 2 | E49: 3 | F49: 4 | G49: 5 | H49: 6 | I49: 7 | J49: 8 | K49: 9 | L49: out | M49: 10 | N49: 11 | O49: 12 | P49: 13 | Q49: 14 | R49: 15 | S49: 16 | T49: 17 | U49: 18 | V49: in | W49: Total
A50: Lori Meyer | B50: Fre | C50: 5 | D50: 4 | E50: 6 | F50: 4 | G50: 3 | H50: 5 | I50: 5 | J50: 3 | K50: 7 | L50: =SUM(C50:K50) -> 42 | M50: 5 | N50: 3 | O50: 4 | P50: 6 | Q50: 5 | R50: 5 | S50: 4 | T50: 4 | U50: 5 | V50: =IF(U50>"a",U50,SUM(M50:U50)) -> 41 | W50: =IF(V50>"a",V50,L50+V50) -> 83
A51: Emily Swoboda | B51: =IF(B50="","",B50) -> Fre | C51: 7 | D51: 7 | E51: 10 | F51: 5 | G51: 5 | H51: 8 | I51: 5 | J51: 3 | K51: 7 | L51: =SUM(C51:K51) -> 57 | M51: 8 | N51: 7 | O51: 5 | P51: 6 | Q51: 5 | R51: 6 | S51: 4 | T51: 3 | U51: 8 | V51: =IF(U51>"a",U51,SUM(M51:U51)) -> 52 | W51: =IF(V51>"a",V51,L51+V51) -> 109 | X51: Total
A52: Paige Fulller | B52: =B51 -> Fre | C52: 8 | D52: 5 | E52: 6 | F52: 7 | G52: 4 | H52: 10 | I52: 6 | J52: 6 | K52: 9 | L52: =SUM(C52:K52) -> 61 | M52: 7 | N52: 5 | O52: 7 | P52: 5 | Q52: 5 | R52: 6 | S52: 6 | T52: 5 | U52: 8 | V52: =IF(U52>"a",U52,SUM(M52:U52)) -> 54 | W52: =IF(V52>"a",V52,L52+V52) -> 115 | X52: =IF(COUNT(W50:W54)<=3,"DQ",IF(COUNT(W50:W54)=4,SUM(W50:W54),SUM(W50:W54)-MAX(W50:W54))) -> 429
A53: Miranda Peterson | B53: =B52 -> Fre | C53: 10 | D53: 6 | E53: 6 | F53: 8 | G53: 6 | H53: 7 | I53: 6 | J53: 5 | K53: 7 | L53: 61 | M53: 8 | N53: 6 | O53: 6 | P53: 9 | Q53: 5 | R53: 6 | S53: 8 | T53: 5 | U53: 11 | V53: =IF(U53>"a",U53,SUM(M53:U53)) -> 64 | W53: =IF(V53>"a",V53,L53+V53) -> 125
A54: Payton Dorn | B54: =B53 -> Fre | C54: 6 | D54: 6 | E54: 7 | F54: 6 | G54: 5 | H54: 7 | I54: 5 | J54: 4 | K54: 12 | L54: 58 | M54: 7 | N54: 7 | O54: 9 | P54: 9 | Q54: 8 | R54: 6 | S54: 6 | T54: 6 | U54: 6 | V54: =IF(U54>"a",U54,SUM(M54:U54)) -> 64 | W54: =IF(V54>"a",V54,L54+V54) -> 122
A55: Team Bestball | B55: =B54 -> Fre | C55: =MIN(C50:C54) -> 5 | D55: 4 | E55: 6 | F55: 4 | G55: 3 | H55: 5 | I55: 5 | J55: 3 | K55: 7 | L55: 42 | M55: =MIN(M50:M54) -> 5 | N55: 3 | O55: 4 | P55: 5 | Q55: 5 | R55: 5 | S55: 4 | T55: 3 | U55: 5 | V55: =SUM(M55:U55) -> 39 | W55: =L55+V55 -> 81
A57: GB Preble | B57: Hole | C57: 1 | D57: 2 | E57: 3 | F57: 4 | G57: 5 | H57: 6 | I57: 7 | J57: 8 | K57: 9 | L57: out | M57: 10 | N57: 11 | O57: 12 | P57: 13 | Q57: 14 | R57: 15 | S57: 16 | T57: 17 | U57: 18 | V57: in | W57: Total
A58: Sydney Onesti | B58: GBP | C58: 6 | D58: 5 | E58: 4 | F58: 7 | G58: 4 | H58: 5 | I58: 6 | J58: 3 | K58: 6 | L58: =SUM(C58:K58) -> 46 | M58: 6 | N58: 3 | O58: 6 | P58: 5 | Q58: 4 | R58: 5 | S58: 5 | T58: 3 | U58: 8 | V58: =IF(U58>"a",U58,SUM(M58:U58)) -> 45 | W58: =IF(V58>"a",V58,L58+V58) -> 91
A59: Katie Warpinski | B59: =IF(B58="","",B58) -> GBP | C59: 9 | D59: 6 | E59: 5 | F59: 5 | G59: 3 | H59: 3 | I59: 5 | J59: 4 | K59: 6 | L59: 46 | M59: 6 | N59: 5 | O59: 4 | P59: 6 | Q59: 5 | R59: 4 | S59: 5 | T59: 4 | U59: 6 | V59: =IF(U59>"a",U59,SUM(M59:U59)) -> 45 | W59: =IF(V59>"a",V59,L59+V59) -> 91 | X59: Total
A60: Annie Schneider | B60: =B59 -> GBP | C60: 8 | D60: 4 | E60: 6 | F60: 6 | G60: 4 | H60: 5 | I60: 6 | J60: 3 | K60: 5 | L60: =SUM(C60:K60) -> 47 | M60: 6 | N60: 3 | O60: 4 | P60: 7 | Q60: 5 | R60: 6 | S60: 6 | T60: 3 | U60: 6 | V60: =IF(U60>"a",U60,SUM(M60:U60)) -> 46 | W60: =IF(V60>"a",V60,L60+V60) -> 93 | X60: =IF(COUNT(W58:W62)<=3,"DQ",IF(COUNT(W58:W62)=4,SUM(W58:W62),SUM(W58:W62)-MAX(W58:W62))) -> 375
A61: Kayley Ketter | B61: =B60 -> GBP | C61: 6 | D61: 5 | E61: 6 | F61: 7 | G61: 4 | H61: 6 | I61: 5 | J61: 5 | K61: 7 | L61: =SUM(C61:K61) -> 51 | M61: 5 | N61: 5 | O61: 7 | P61: 6 | Q61: 6 | R61: 5 | S61: 6 | T61: 3 | U61: 6 | V61: =IF(U61>"a",U61,SUM(M61:U61)) -> 49 | W61: =IF(V61>"a",V61,L61+V61) -> 100
A62: Rachael Revolinski | B62: =B61 -> GBP | C62: 7 | D62: 5 | E62: 8 | F62: 6 | G62: 6 | H62: 6 | I62: 6 | J62: 5 | K62: 7 | L62: 56 | M62: 5 | N62: 3 | O62: 5 | P62: 6 | Q62: 6 | R62: 5 | S62: 6 | T62: 4 | U62: 9 | V62: =IF(U62>"a",U62,SUM(M62:U62)) -> 49 | W62: =IF(V62>"a",V62,L62+V62) -> 105
A63: Team Bestball | B63: =B62 -> GBP | C63: =MIN(C58:C62) -> 6 | D63: 4 | E63: 4 | F63: 5 | G63: 3 | H63: 3 | I63: 5 | J63: 3 | K63: 5 | L63: 38 | M63: =MIN(M58:M62) -> 5 | N63: 3 | O63: 4 | P63: 5 | Q63: 4 | R63: 4 | S63: 5 | T63: 3 | U63: 6 | V63: =SUM(M63:U63) -> 39 | W63: =L63+V63 -> 77
A65: Hortonville | B65: Hole | C65: 1 | D65: 2 | E65: 3 | F65: 4 | G65: 5 | H65: 6 | I65: 7 | J65: 8 | K65: 9 | L65: out | M65: 10 | N65: 11 | O65: 12 | P65: 13 | Q65: 14 | R65: 15 | S65: 16 | T65: 17 | U65: 18 | V65: in | W65: Total
A66: Chloe Crusan | B66: Hor | C66: 5 | D66: 3 | E66: 5 | F66: 4 | G66: 5 | H66: 5 | I66: 6 | J66: 3 | K66: 6 | L66: =SUM(C66:K66) -> 42 | M66: 7 | N66: 4 | O66: 5 | P66: 4 | Q66: 5 | R66: 6 | S66: 5 | T66: 4 | U66: 6 | V66: =IF(U66>"a",U66,SUM(M66:U66)) -> 46 | W66: =IF(V66>"a",V66,L66+V66) -> 88
A67: Abby Nelson | B67: =IF(B66="","",B66) -> Hor | C67: 6 | D67: 4 | E67: 7 | F67: 7 | G67: 4 | H67: 6 | I67: 6 | J67: 3 | K67: 7 | L67: 50 | M67: 5 | N67: 4 | O67: 3 | P67: 5 | Q67: 4 | R67: 7 | S67: 6 | T67: 3 | U67: 6 | V67: =IF(U67>"a",U67,SUM(M67:U67)) -> 43 | W67: =IF(V67>"a",V67,L67+V67) -> 93 | X67: Total
A68: Bree Downie | B68: =B67 -> Hor | C68: 6 | D68: 4 | E68: 6 | F68: 4 | G68: 4 | H68: 5 | I68: 5 | J68: 3 | K68: 6 | L68: 43 | M68: 5 | N68: 4 | O68: 5 | P68: 6 | Q68: 4 | R68: 5 | S68: 4 | T68: 4 | U68: 6 | V68: =IF(U68>"a",U68,SUM(M68:U68)) -> 43 | W68: =IF(V68>"a",V68,L68+V68) -> 86 | X68: =IF(COUNT(W66:W70)<=3,"DQ",IF(COUNT(W66:W70)=4,SUM(W66:W70),SUM(W66:W70)-MAX(W66:W70))) -> 362
A69: Abbey Karns | B69: =B68 -> Hor | C69: 7 | D69: 4 | E69: 6 | F69: 6 | G69: 4 | H69: 8 | I69: 5 | J69: 4 | K69: 7 | L69: 51 | M69: 5 | N69: 3 | O69: 4 | P69: 5 | Q69: 6 | R69: 5 | S69: 6 | T69: 4 | U69: 6 | V69: =IF(U69>"a",U69,SUM(M69:U69)) -> 44 | W69: =IF(V69>"a",V69,L69+V69) -> 95
A70: Halle Karns | B70: =B69 -> Hor | C70: 6 | D70: 5 | E70: 6 | F70: 6 | G70: 4 | H70: 10 | I70: 7 | J70: 4 | K70: 7 | L70: 55 | M70: 7 | N70: 5 | O70: 6 | P70: 6 | Q70: 7 | R70: 5 | S70: 5 | T70: 2 | U70: 9 | V70: =IF(U70>"a",U70,SUM(M70:U70)) -> 52 | W70: =IF(V70>"a",V70,L70+V70) -> 107
A71: Team Bestball | B71: =B70 -> Hor | C71: =MIN(C66:C70) -> 5 | D71: 3 | E71: 5 | F71: 4 | G71: 4 | H71: 5 | I71: 5 | J71: 3 | K71: 6 | L71: 40 | M71: =MIN(M66:M70) -> 5 | N71: 3 | O71: 3 | P71: 4 | Q71: 4 | R71: 5 | S71: 4 | T71: 2 | U71: 6 | V71: =SUM(M71:U71) -> 36 | W71: =L71+V71 -> 76
A73: Kimberly | B73: Hole | C73: 1 | D73: 2 | E73: 3 | F73: 4 | G73: 5 | H73: 6 | I73: 7 | J73: 8 | K73: 9 | L73: out | M73: 10 | N73: 11 | O73: 12 | P73: 13 | Q73: 14 | R73: 15 | S73: 16 | T73: 17 | U73: 18 | V73: in | W73: Total
A74: Hannah Braun | B74: Kim | C74: 5 | D74: 4 | E74: 5 | F74: 5 | G74: 4 | H74: 5 | I74: 4 | J74: 4 | K74: 7 | L74: =SUM(C74:K74) -> 43 | M74: 6 | N74: 5 | O74: 3 | P74: 4 | Q74: 5 | R74: 6 | S74: 5 | T74: 3 | U74: 5 | V74: =IF(U74>"a",U74,SUM(M74:U74)) -> 42 | W74: =IF(V74>"a",V74,L74+V74) -> 85
A75: Hailey Russ | B75: =IF(B74="","",B74) -> Kim | C75: 6 | D75: 5 | E75: 6 | F75: 5 | G75: 4 | H75: 5 | I75: 6 | J75: 4 | K75: 6 | L75: 47 | M75: 7 | N75: 5 | O75: 7 | P75: 7 | Q75: 6 | R75: 6 | S75: 7 | T75: 4 | U75: 9 | V75: =IF(U75>"a",U75,SUM(M75:U75)) -> 58 | W75: =IF(V75>"a",V75,L75+V75) -> 105 | X75: Total
A76: Emma Larew | B76: =B75 -> Kim | C76: 6 | D76: 7 | E76: 6 | F76: 7 | G76: 5 | H76: 6 | I76: 5 | J76: 6 | K76: 10 | L76: 58 | M76: 9 | N76: 5 | O76: 7 | P76: 7 | Q76: 6 | R76: 6 | S76: 5 | T76: 3 | U76: 9 | V76: =IF(U76>"a",U76,SUM(M76:U76)) -> 57 | W76: =IF(V76>"a",V76,L76+V76) -> 115 | X76: =IF(COUNT(W74:W78)<=3,"DQ",IF(COUNT(W74:W78)=4,SUM(W74:W78),SUM(W74:W78)-MAX(W74:W78))) -> 422
A77: Kendra Schrieber | B77: =B76 -> Kim | C77: 7 | D77: 5 | E77: 5 | F77: 4 | G77: 6 | H77: 6 | I77: 12 | J77: 7 | K77: 8 | L77: 60 | M77: 7 | N77: 5 | O77: 7 | P77: 7 | Q77: 5 | R77: 7 | S77: 8 | T77: 4 | U77: 7 | V77: =IF(U77>"a",U77,SUM(M77:U77)) -> 57 | W77: =IF(V77>"a",V77,L77+V77) -> 117
A78: Eli Herbst | B78: =B77 -> Kim | C78: 7 | D78: 5 | E78: 5 | F78: 7 | G78: 5 | H78: 6 | I78: 8 | J78: 4 | K78: 9 | L78: 56 | M78: 9 | N78: 4 | O78: 7 | P78: 8 | Q78: 6 | R78: 5 | S78: 5 | T78: 5 | U78: 12 | V78: =IF(U78>"a",U78,SUM(M78:U78)) -> 61 | W78: =IF(V78>"a",V78,L78+V78) -> 117
A79: Team Bestball | B79: =B78 -> Kim | C79: =MIN(C74:C78) -> 5 | D79: 4 | E79: 5 | F79: 4 | G79: 4 | H79: 5 | I79: 4 | J79: 4 | K79: 6 | L79: 41 | M79: =MIN(M74:M78) -> 6 | N79: 4 | O79: 3 | P79: 4 | Q79: 5 | R79: 5 | S79: 5 | T79: 3 | U79: 5 | V79: =SUM(M79:U79) -> 40 | W79: =L79+V79 -> 81
A81: Marinette | B81: Hole | C81: 1 | D81: 2 | E81: 3 | F81: 4 | G81: 5 | H81: 6 | I81: 7 | J81: 8 | K81: 9 | L81: out | M81: 10 | N81: 11 | O81: 12 | P81: 13 | Q81: 14 | R81: 15 | S81: 16 | T81: 17 | U81: 18 | V81: in | W81: Total
A82: Kayla Thielen | B82: Mar | C82: 6 | D82: 4 | E82: 6 | F82: 5 | G82: 3 | H82: 5 | I82: 4 | J82: 4 | K82: 7 | L82: =SUM(C82:K82) -> 44 | M82: 6 | N82: 4 | O82: 4 | P82: 4 | Q82: 4 | R82: 5 | S82: 5 | T82: 3 | U82: 6 | V82: =IF(U82>"a",U82,SUM(M82:U82)) -> 41 | W82: =IF(V82>"a",V82,L82+V82) -> 85
A83: Hallie Olsen | B83: =IF(B82="","",B82) -> Mar | C83: 7 | D83: 4 | E83: 5 | F83: 6 | G83: 5 | H83: 6 | I83: 5 | J83: 4 | K83: 10 | L83: 52 | M83: 6 | N83: 4 | O83: 6 | P83: 5 | Q83: 6 | R83: 5 | S83: 3 | T83: 3 | U83: 6 | V83: =IF(U83>"a",U83,SUM(M83:U83)) -> 44 | W83: =IF(V83>"a",V83,L83+V83) -> 96 | X83: Total
A84: Mariah Chenier | B84: =B83 -> Mar | C84: 7 | D84: 5 | E84: 5 | F84: 5 | G84: 4 | H84: 5 | I84: 8 | J84: 4 | K84: 7 | L84: 50 | M84: 8 | N84: 4 | O84: 5 | P84: 6 | Q84: 5 | R84: 6 | S84: 6 | T84: 4 | U84: 8 | V84: =IF(U84>"a",U84,SUM(M84:U84)) -> 52 | W84: =IF(V84>"a",V84,L84+V84) -> 102 | X84: =IF(COUNT(W82:W86)<=3,"DQ",IF(COUNT(W82:W86)=4,SUM(W82:W86),SUM(W82:W86)-MAX(W82:W86))) -> 377
A85: Lexi Bretl | B85: =B84 -> Mar | C85: 5 | D85: 5 | E85: 6 | F85: 6 | G85: 4 | H85: 5 | I85: 5 | J85: 5 | K85: 7 | L85: 48 | M85: 7 | N85: 5 | O85: 4 | P85: 6 | Q85: 5 | R85: 5 | S85: 5 | T85: 3 | U85: 6 | V85: =IF(U85>"a",U85,SUM(M85:U85)) -> 46 | W85: =IF(V85>"a",V85,L85+V85) -> 94
A86: Megan Phillips | B86: =B85 -> Mar | C86: 7 | D86: 6 | E86: 6 | F86: 6 | G86: 5 | H86: 8 | I86: 7 | J86: 4 | K86: 8 | L86: 57 | M86: 7 | N86: 4 | O86: 5 | P86: 5 | Q86: 5 | R86: 5 | S86: 7 | T86: 4 | U86: 6 | V86: =IF(U86>"a",U86,SUM(M86:U86)) -> 48 | W86: =IF(V86>"a",V86,L86+V86) -> 105
A87: Team Bestball | B87: =B86 -> Mar | C87: =MIN(C82:C86) -> 5 | D87: 4 | E87: 5 | F87: 5 | G87: 3 | H87: 5 | I87: 4 | J87: 4 | K87: 7 | L87: 42 | M87: =MIN(M82:M86) -> 6 | N87: 4 | O87: 4 | P87: 4 | Q87: 4 | R87: 5 | S87: 3 | T87: 3 | U87: 6 | V87: =SUM(M87:U87) -> 39 | W87: =L87+V87 -> 81
A89: Pulaski | B89: Hole | C89: 1 | D89: 2 | E89: 3 | F89: 4 | G89: 5 | H89: 6 | I89: 7 | J89: 8 | K89: 9 | L89: out | M89: 10 | N89: 11 | O89: 12 | P89: 13 | Q89: 14 | R89: 15 | S89: 16 | T89: 17 | U89: 18 | V89: in | W89: Total
A90: Cailin Cleary | B90: Pul | C90: 8 | D90: 5 | E90: 6 | F90: 7 | G90: 5 | H90: 6 | I90: 6 | J90: 4 | K90: 6 | L90: =SUM(C90:K90) -> 53 | M90: 10 | N90: 5 | O90: 7 | P90: 8 | Q90: 5 | R90: 5 | S90: 6 | T90: 4 | U90: 6 | V90: =IF(U90>"a",U90,SUM(M90:U90)) -> 56 | W90: =IF(V90>"a",V90,L90+V90) -> 109
A91: Emma Jonas | B91: =IF(B90="","",B90) -> Pul | C91: 7 | D91: 4 | E91: 5 | F91: 6 | G91: 4 | H91: 7 | I91: 5 | J91: 3 | K91: 7 | L91: 48 | M91: 7 | N91: 6 | O91: 6 | P91: 6 | Q91: 5 | R91: 6 | S91: 5 | T91: 4 | U91: 11 | V91: =IF(U91>"a",U91,SUM(M91:U91)) -> 56 | W91: =IF(V91>"a",V91,L91+V91) -> 104 | X91: Total
A92: Ally Tonn | B92: =B91 -> Pul | C92: 8 | D92: 5 | E92: 8 | F92: 5 | G92: 4 | H92: 6 | I92: 6 | J92: 6 | K92: 6 | L92: 54 | M92: 7 | N92: 4 | O92: 5 | P92: 6 | Q92: 6 | R92: 5 | S92: 5 | T92: 3 | U92: 6 | V92: =IF(U92>"a",U92,SUM(M92:U92)) -> 47 | W92: =IF(V92>"a",V92,L92+V92) -> 101 | X92: =IF(COUNT(W90:W94)<=3,"DQ",IF(COUNT(W90:W94)=4,SUM(W90:W94),SUM(W90:W94)-MAX(W90:W94))) -> 400
A93: Maddy Process | B93: =B92 -> Pul | C93: 5 | D93: 7 | E93: 5 | F93: 5 | G93: 4 | H93: 9 | I93: 6 | J93: 4 | K93: 6 | L93: 51 | M93: 5 | N93: 5 | O93: 6 | P93: 5 | Q93: 5 | R93: 6 | S93: 6 | T93: 5 | U93: 6 | V93: =IF(U93>"a",U93,SUM(M93:U93)) -> 49 | W93: =IF(V93>"a",V93,L93+V93) -> 100
A94: Madi Winter | B94: =B93 -> Pul | C94: 9 | D94: 4 | E94: 4 | F94: 4 | G94: 5 | H94: 7 | I94: 6 | J94: 6 | K94: 7 | L94: 52 | M94: 7 | N94: 3 | O94: 5 | P94: 4 | Q94: 4 | R94: 5 | S94: 5 | T94: 4 | U94: 6 | V94: =IF(U94>"a",U94,SUM(M94:U94)) -> 43 | W94: =IF(V94>"a",V94,L94+V94) -> 95
A95: Team Bestball | B95: =B94 -> Pul | C95: =MIN(C90:C94) -> 5 | D95: 4 | E95: 4 | F95: 4 | G95: 4 | H95: 6 | I95: 5 | J95: 3 | K95: 6 | L95: 41 | M95: =MIN(M90:M94) -> 5 | N95: 3 | O95: 5 | P95: 4 | Q95: 4 | R95: 5 | S95: 5 | T95: 3 | U95: 6 | V95: =SUM(M95:U95) -> 40 | W95: =L95+V95 -> 81
A97: Seymour | B97: Hole | C97: 1 | D97: 2 | E97: 3 | F97: 4 | G97: 5 | H97: 6 | I97: 7 | J97: 8 | K97: 9 | L97: out | M97: 10 | N97: 11 | O97: 12 | P97: 13 | Q97: 14 | R97: 15 | S97: 16 | T97: 17 | U97: 18 | V97: in | W97: Total
A98: Anna Pesola | B98: Sey | C98: 5 | D98: 4 | E98: 5 | F98: 6 | G98: 5 | H98: 6 | I98: 7 | J98: 4 | K98: 7 | L98: =SUM(C98:K98) -> 49 | M98: 6 | N98: 4 | O98: 5 | P98: 6 | Q98: 5 | R98: 5 | S98: 5 | T98: 5 | U98: 6 | V98: =IF(U98>"a",U98,SUM(M98:U98)) -> 47 | W98: =IF(V98>"a",V98,L98+V98) -> 96
A99: Gretchen Heins | B99: =IF(B98="","",B98) -> Sey | C99: 7 | D99: 7 | E99: 5 | F99: 5 | G99: 5 | H99: 7 | I99: 4 | J99: 4 | K99: 8 | L99: =SUM(C99:K99) -> 52 | M99: 7 | N99: 5 | O99: 5 | P99: 6 | Q99: 5 | R99: 7 | S99: 6 | T99: 4 | U99: 7 | V99: =IF(U99>"a",U99,SUM(M99:U99)) -> 52 | W99: =IF(V99>"a",V99,L99+V99) -> 104 | X99: Total
A100: Cassie Bain | B100: =B99 -> Sey | C100: 7 | D100: 6 | E100: 8 | F100: 6 | G100: 4 | H100: 6 | I100: 6 | J100: 6 | K100: 8 | L100: 57 | M100: 7 | N100: 4 | O100: 6 | P100: 6 | Q100: 6 | R100: 7 | S100: 9 | T100: 7 | U100: 8 | V100: =IF(U100>"a",U100,SUM(M100:U100)) -> 60 | W100: =IF(V100>"a",V100,L100+V100) -> 117 | X100: =IF(COUNT(W98:W102)<=3,"DQ",IF(COUNT(W98:W102)=4,SUM(W98:W102),SUM(W98:W102)-MAX(W98:W102))) -> 426
A101: Kyla Ryan | B101: =B100 -> Sey | C101: 7 | D101: 6 | E101: 9 | F101: 9 | G101: 4 | H101: 8 | I101: 6 | J101: 6 | K101: 11 | L101: 66 | M101: 8 | N101: 7 | O101: 7 | P101: 6 | Q101: 5 | R101: 7 | S101: 11 | T101: 5 | U101: 9 | V101: =IF(U101>"a",U101,SUM(M101:U101)) -> 65 | W101: =IF(V101>"a",V101,L101+V101) -> 131
A102: Carissa Salter | B102: =B101 -> Sey | C102: 6 | D102: 7 | E102: 5 | F102: 7 | G102: 5 | H102: 7 | I102: 5 | J102: 4 | K102: 8 | L102: =SUM(C102:K102) -> 54 | M102: 8 | N102: 5 | O102: 5 | P102: 5 | Q102: 5 | R102: 8 | S102: 6 | T102: 6 | U102: 7 | V102: =IF(U102>"a",U102,SUM(M102:U102)) -> 55 | W102: =IF(V102>"a",V102,L102+V102) -> 109
A103: Team Bestball | B103: =B102 -> Sey | C103: =MIN(C98:C102) -> 5 | D103: 4 | E103: 5 | F103: 5 | G103: 4 | H103: 6 | I103: 4 | J103: 4 | K103: 7 | L103: 44 | M103: =MIN(M98:M102) -> 6 | N103: 4 | O103: 5 | P103: 5 | Q103: 5 | R103: 5 | S103: 5 | T103: 4 | U103: 6 | V103: =SUM(M103:U103) -> 45 | W103: =L103+V103 -> 89
A105: Shawano | B105: Hole | C105: 1 | D105: 2 | E105: 3 | F105: 4 | G105: 5 | H105: 6 | I105: 7 | J105: 8 | K105: 9 | L105: out | M105: 10 | N105: 11 | O105: 12 | P105: 13 | Q105: 14 | R105: 15 | S105: 16 | T105: 17 | U105: 18 | V105: in | W105: Total
A106: Julia Beck | B106: Sha | C106: 5 | D106: 5 | E106: 7 | F106: 5 | G106: 5 | H106: 5 | I106: 5 | J106: 4 | K106: 9 | L106: =SUM(C106:K106) -> 50 | M106: 6 | N106: 5 | O106: 5 | P106: 6 | Q106: 7 | R106: 6 | S106: 6 | T106: 5 | U106: 10 | V106: =IF(U106>"a",U106,SUM(M106:U106)) -> 56 | W106: =IF(V106>"a",V106,L106+V106) -> 106
A107: Brianna Zook | B107: =IF(B106="","",B106) -> Sha | C107: 7 | D107: 6 | E107: 5 | F107: 6 | G107: 4 | H107: 4 | I107: 5 | J107: 3 | K107: 8 | L107: 48 | M107: 7 | N107: 6 | O107: 7 | P107: 5 | Q107: 6 | R107: 4 | S107: 6 | T107: 4 | U107: 7 | V107: =IF(U107>"a",U107,SUM(M107:U107)) -> 52 | W107: =IF(V107>"a",V107,L107+V107) -> 100 | X107: Total
A108: Gabby Krueger | B108: =B107 -> Sha | C108: 9 | D108: 9 | E108: 7 | F108: 9 | G108: 6 | H108: 5 | I108: 8 | J108: 6 | K108: 7 | L108: 66 | M108: 8 | N108: 6 | O108: 6 | P108: 6 | Q108: 5 | R108: 7 | S108: 8 | T108: 7 | U108: 9 | V108: =IF(U108>"a",U108,SUM(M108:U108)) -> 62 | W108: =IF(V108>"a",V108,L108+V108) -> 128 | X108: =IF(COUNT(W106:W110)<=3,"DQ",IF(COUNT(W106:W110)=4,SUM(W106:W110),SUM(W106:W110)-MAX(W106:W110))) -> 458
A109: Emily Smith | B109: =B108 -> Sha | C109: 8 | D109: 5 | E109: 6 | F109: 7 | G109: 5 | H109: 8 | I109: 7 | J109: 5 | K109: 10 | L109: 61 | M109: 9 | N109: 5 | O109: 7 | P109: 7 | Q109: 8 | R109: 8 | S109: 5 | T109: 3 | U109: 11 | V109: =IF(U109>"a",U109,SUM(M109:U109)) -> 63 | W109: =IF(V109>"a",V109,L109+V109) -> 124
A110: Hannah Hass | B110: =B109 -> Sha | C110: 7 | D110: 7 | E110: 8 | F110: 9 | G110: 5 | H110: 9 | I110: 5 | J110: 7 | K110: 9 | L110: 66 | M110: 9 | N110: 6 | O110: 8 | P110: 5 | Q110: 6 | R110: 8 | S110: 6 | T110: 7 | U110: 12 | V110: =IF(U110>"a",U110,SUM(M110:U110)) -> 67 | W110: =IF(V110>"a",V110,L110+V110) -> 133
A111: Team Bestball | B111: =B110 -> Sha | C111: =MIN(C106:C110) -> 5 | D111: 5 | E111: 5 | F111: 5 | G111: 4 | H111: 4 | I111: 5 | J111: 3 | K111: 7 | L111: 43 | M111: =MIN(M106:M110) -> 6 | N111: 5 | O111: 5 | P111: 5 | Q111: 5 | R111: 4 | S111: 5 | T111: 3 | U111: 7 | V111: =SUM(M111:U111) -> 45 | W111: =L111+V111 -> 88
A113: Waupaca | B113: Hole | C113: 1 | D113: 2 | E113: 3 | F113: 4 | G113: 5 | H113: 6 | I113: 7 | J113: 8 | K113: 9 | L113: out | M113: 10 | N113: 11 | O113: 12 | P113: 13 | Q113: 14 | R113: 15 | S113: 16 | T113: 17 | U113: 18 | V113: in | W113: Total
A114: Markie Ash | B114: Wau | C114: 6 | D114: 4 | E114: 5 | F114: 6 | G114: 4 | H114: 6 | I114: 5 | J114: 4 | K114: 6 | L114: =SUM(C114:K114) -> 46 | M114: 5 | N114: 5 | O114: 5 | P114: 6 | Q114: 6 | R114: 7 | S114: 5 | T114: 3 | U114: 7 | V114: =IF(U114>"a",U114,SUM(M114:U114)) -> 49 | W114: =IF(V114>"a",V114,L114+V114) -> 95
A115: Alana Radley | B115: =IF(B114="","",B114) -> Wau | C115: 10 | D115: 6 | E115: 6 | F115: 8 | G115: 6 | H115: 7 | I115: 6 | J115: 6 | K115: 8 | L115: 63 | M115: 11 | N115: 5 | O115: 8 | P115: 7 | Q115: 5 | R115: 6 | S115: 6 | T115: 11 | U115: 7 | V115: =IF(U115>"a",U115,SUM(M115:U115)) -> 66 | W115: =IF(V115>"a",V115,L115+V115) -> 129 | X115: Total
A116: Sydni Sondrol | B116: =B115 -> Wau | C116: 11 | D116: 7 | E116: 9 | F116: 8 | G116: 5 | H116: 8 | I116: 7 | J116: 5 | K116: 9 | L116: 69 | M116: 10 | N116: 5 | O116: 6 | P116: 7 | Q116: 7 | R116: 6 | S116: 5 | T116: 5 | U116: 9 | V116: =IF(U116>"a",U116,SUM(M116:U116)) -> 60 | W116: =IF(V116>"a",V116,L116+V116) -> 129 | X116: =IF(COUNT(W114:W118)<=3,"DQ",IF(COUNT(W114:W118)=4,SUM(W114:W118),SUM(W114:W118)-MAX(W114:W118))) -> 495
B117: =B116 -> Wau | L117: 0 | U117: dq | V117: =IF(U117>"a",U117,SUM(M117:U117)) -> dq | W117: =IF(V117>"a",V117,L117+V117) -> dq
A118: Anna Ryder | B118: =B117 -> Wau | C118: 12 | D118: 6 | E118: 10 | F118: 9 | G118: 6 | H118: 8 | I118: 7 | J118: 9 | K118: 9 | L118: 76 | M118: 10 | N118: 7 | O118: 6 | P118: 9 | Q118: 6 | R118: 5 | S118: 7 | T118: 6 | U118: 10 | V118: =IF(U118>"a",U118,SUM(M118:U118)) -> 66 | W118: =IF(V118>"a",V118,L118+V118) -> 142
A119: Team Bestball | B119: =B118 -> Wau | C119: =MIN(C114:C118) -> 6 | D119: 4 | E119: 5 | F119: 6 | G119: 4 | H119: 6 | I119: 5 | J119: 4 | K119: 6 | L119: 46 | M119: =MIN(M114:M118) -> 5 | N119: 5 | O119: 5 | P119: 6 | Q119: 5 | R119: 5 | S119: 5 | T119: 3 | U119: 7 | V119: =SUM(M119:U119) -> 46 | W119: =L119+V119 -> 92
A121: West DePere | B121: Hole | C121: 1 | D121: 2 | E121: 3 | F121: 4 | G121: 5 | H121: 6 | I121: 7 | J121: 8 | K121: 9 | L121: out | M121: 10 | N121: 11 | O121: 12 | P121: 13 | Q121: 14 | R121: 15 | S121: 16 | T121: 17 | U121: 18 | V121: in | W121: Total
A122: Abby Van De Hei | B122: WDP | C122: 6 | D122: 6 | E122: 5 | F122: 6 | G122: 4 | H122: 6 | I122: 5 | J122: 5 | K122: 9 | L122: =SUM(C122:K122) -> 52 | M122: 7 | N122: 5 | O122: 7 | P122: 7 | Q122: 6 | R122: 5 | S122: 6 | T122: 5 | U122: 7 | V122: =IF(U122>"a",U122,SUM(M122:U122)) -> 55 | W122: =IF(V122>"a",V122,L122+V122) -> 107
A123: Crystal Hill | B123: =IF(B122="","",B122) -> WDP | C123: 7 | D123: 7 | E123: 6 | F123: 6 | G123: 4 | H123: 6 | I123: 6 | J123: 4 | K123: 6 | L123: 52 | M123: 7 | N123: 6 | O123: 5 | P123: 4 | Q123: 5 | R123: 6 | S123: 6 | T123: 5 | U123: 8 | V123: =IF(U123>"a",U123,SUM(M123:U123)) -> 52 | W123: =IF(V123>"a",V123,L123+V123) -> 104 | X123: Total
A124: Maddy Coppens | B124: =B123 -> WDP | C124: 7 | D124: 5 | E124: 6 | F124: 5 | G124: 5 | H124: 7 | I124: 5 | J124: 5 | K124: 7 | L124: 52 | M124: 6 | N124: 6 | O124: 6 | P124: 7 | Q124: 4 | R124: 7 | S124: 10 | T124: 4 | U124: 8 | V124: =IF(U124>"a",U124,SUM(M124:U124)) -> 58 | W124: =IF(V124>"a",V124,L124+V124) -> 110 | X124: =IF(COUNT(W122:W126)<=3,"DQ",IF(COUNT(W122:W126)=4,SUM(W122:W126),SUM(W122:W126)-MAX(W122:W126))) -> 424
A125: Payton Kellam | B125: =B124 -> WDP | C125: 7 | D125: 6 | E125: 5 | F125: 5 | G125: 6 | H125: 6 | I125: 5 | J125: 4 | K125: 11 | L125: 55 | M125: 6 | N125: 5 | O125: 5 | P125: 6 | Q125: 5 | R125: 6 | S125: 7 | T125: 4 | U125: 9 | V125: =IF(U125>"a",U125,SUM(M125:U125)) -> 53 | W125: =IF(V125>"a",V125,L125+V125) -> 108
A126: Brooke Ambrosius | B126: =B125 -> WDP | C126: 6 | D126: 6 | E126: 7 | F126: 5 | G126: 5 | H126: 5 | I126: 7 | J126: 4 | K126: 6 | L126: 51 | M126: 7 | N126: 7 | O126: 5 | P126: 9 | Q126: 5 | R126: 5 | S126: 5 | T126: 5 | U126: 6 | V126: =IF(U126>"a",U126,SUM(M126:U126)) -> 54 | W126: =IF(V126>"a",V126,L126+V126) -> 105
A127: Team Bestball | B127: =B126 -> WDP | C127: =MIN(C122:C126) -> 6 | D127: 5 | E127: 5 | F127: 5 | G127: 4 | H127: 5 | I127: 5 | J127: 4 | K127: 6 | L127: 45 | M127: =MIN(M122:M126) -> 6 | N127: 5 | O127: 5 | P127: 4 | Q127: 4 | R127: 5 | S127: 5 | T127: 4 | U127: 6 | V127: =SUM(M127:U127) -> 44 | W127: =L127+V127 -> 89
A129: Wrightstown | B129: Hole | C129: 1 | D129: 2 | E129: 3 | F129: 4 | G129: 5 | H129: 6 | I129: 7 | J129: 8 | K129: 9 | L129: out | M129: 10 | N129: 11 | O129: 12 | P129: 13 | Q129: 14 | R129: 15 | S129: 16 | T129: 17 | U129: 18 | V129: in | W129: Total
A130: Victoria Draxler | B130: Wri | C130: 6 | D130: 5 | E130: 7 | F130: 5 | G130: 5 | H130: 4 | I130: 6 | J130: 4 | K130: 6 | L130: =SUM(C130:K130) -> 48 | M130: 5 | N130: 5 | O130: 5 | P130: 4 | Q130: 4 | R130: 5 | S130: 5 | T130: 3 | U130: 8 | V130: =IF(U130>"a",U130,SUM(M130:U130)) -> 44 | W130: =IF(V130>"a",V130,L130+V130) -> 92
A131: Emily Tetzlatt | B131: =IF(B130="","",B130) -> Wri | C131: 7 | D131: 5 | E131: 6 | F131: 7 | G131: 3 | H131: 6 | I131: 7 | J131: 5 | K131: 7 | L131: 53 | M131: 6 | N131: 4 | O131: 4 | P131: 6 | Q131: 6 | R131: 6 | S131: 5 | T131: 4 | U131: 6 | V131: =IF(U131>"a",U131,SUM(M131:U131)) -> 47 | W131: =IF(V131>"a",V131,L131+V131) -> 100 | X131: Total
A132: Eden Schneider | B132: =B131 -> Wri | C132: 7 | D132: 5 | E132: 4 | F132: 5 | G132: 4 | H132: 7 | I132: 5 | J132: 5 | K132: 8 | L132: 50 | M132: 8 | N132: 4 | O132: 7 | P132: 7 | Q132: 5 | R132: 6 | S132: 6 | T132: 3 | U132: 8 | V132: =IF(U132>"a",U132,SUM(M132:U132)) -> 54 | W132: =IF(V132>"a",V132,L132+V132) -> 104 | X132: =IF(COUNT(W130:W134)<=3,"DQ",IF(COUNT(W130:W134)=4,SUM(W130:W134),SUM(W130:W134)-MAX(W130:W134))) -> 404
A133: Chloe Crossman | B133: =B132 -> Wri | L133: 0 | U133: dq | V133: =IF(U133>"a",U133,SUM(M133:U133)) -> dq | W133: =IF(V133>"a",V133,L133+V133) -> dq
A134: Grace Nemecek | B134: =B133 -> Wri | C134: 6 | D134: 4 | E134: 5 | F134: 5 | G134: 5 | H134: 7 | I134: 9 | J134: 6 | K134: 7 | L134: 54 | M134: 6 | N134: 5 | O134: 5 | P134: 5 | Q134: 5 | R134: 6 | S134: 7 | T134: 9 | U134: 6 | V134: =IF(U134>"a",U134,SUM(M134:U134)) -> 54 | W134: =IF(V134>"a",V134,L134+V134) -> 108
A135: Team Bestball | B135: =B134 -> Wri | C135: =MIN(C130:C134) -> 6 | D135: 4 | E135: 4 | F135: 5 | G135: 3 | H135: 4 | I135: 5 | J135: 4 | K135: 6 | L135: 41 | M135: =MIN(M130:M134) -> 5 | N135: 4 | O135: 4 | P135: 4 | Q135: 4 | R135: 5 | S135: 5 | T135: 3 | U135: 6 | V135: =SUM(M135:U135) -> 40 | W135: =L135+V135 -> 81
B137: Hole | C137: 1 | D137: 2 | E137: 3 | F137: 4 | G137: 5 | H137: 6 | I137: 7 | J137: 8 | K137: 9 | M137: 10 | N137: 11 | O137: 12 | P137: 13 | Q137: 14 | R137: 15 | S137: 16 | T137: 17 | U137: 18
A138: Hole Avg. | C138: =(AVERAGE(C122:C126,C130:C134,C114:C118,C106:C110,C98:C102,C90:C94,C82:C86,C74:C78,C66:C70,C58:C62,C50:C54,C10:C14)) -> 6.965517241 | D138: 5.431034483 | E138: 6.051724138 | F138: 6.120689655 | G138: 4.534482759 | H138: 6.362068966 | I138: 6 | J138: 4.586206897 | K138: 7.603448276 | M138: =(AVERAGE(M122:M126,M130:M134,M114:M118,M106:M110,M98:M102,M90:M94,M82:M86,M74:M78,M66:M70,M58:M62,M50:M54,M10:M14)) -> 7.068965517 | N138: 4.793103448 | O138: 5.74137931 | P138: 6.086206897 | Q138: 5.362068966 | R138: 5.844827586 | S138: 5.948275862 | T138: 4.465517241 | U138: 7.551724138
A139: Over (Under) Par | C139: =C138-C8 -> 1.965517241 | D139: 1.431034483 | E139: 2.051724138 | F139: 2.120689655 | G139: 1.534482759 | H139: 2.362068966 | I139: 2 | J139: 1.586206897 | K139: 2.603448276 | M139: =M138-M8 -> 2.068965517 | N139: 1.793103448 | O139: 1.74137931 | P139: 2.086206897 | Q139: 1.362068966 | R139: 1.844827586 | S139: 1.948275862 | T139: 1.465517241 | U139: 2.551724138
Z140: =A4 -> 2015 Thunder Invite
Z141: =A5 -> Crystal Springs G.C.; August 14, 2015; Par 72
Z142: Individual Scoring | AH142: Hole-by-hole Analysis
Z143: School | AA143: Name | AB143: Out | AC143: In | AD143: Score | AE143: Place | AH143: Hole | AI143: Par | AJ143: Avg. | AK143: Over | AL143: Rank
Z144: =$B$34 -> DP | AA144: =$A$34 -> Megan Growt | AB144: =$L$34 -> 43 | AC144: =$V$34 -> 36 | AD144: =$W$34 -> 79 | AE144: =IF(AA144="","",IF(AD144>"a","",IF(AD144=AD143,AE143,COUNTA($AE$108:AE143)))) -> 1 | AH144: 9 | AI144: =$K$8 -> 5 | AJ144: =$K$138 -> 7.603448276 | AK144: =$K$139 -> 2.603448276 | AL144: =IF(AK144=AK143,AL143,COUNT($AL$143:AL143)+1) -> 1
A145: Team | B145: Score | D145: Rank | Z145: =$B$43 -> FVL | AA145: =$A$43 -> Trystin Kluess | AB145: =$L$43 -> 41 | AC145: =$V$43 -> 42 | AD145: =$W$43 -> 83 | AE145: =IF(AA145="","",IF(AD145>"a","",IF(AD145=AD144,AE144,COUNTA($AE$108:AE144)))) -> 2 | AH145: 18 | AI145: =$U$8 -> 5 | AJ145: =$U$138 -> 7.551724138 | AK145: =$U$139 -> 2.551724138 | AL145: =IF(AK145=AK144,AL144,COUNT($AL$143:AL144)+1) -> 2
A146: =$A$41 -> Fox Valley Luth | B146: =$X$44 -> 350 | D146: =IF(A146="","",IF(B146=B145,D145,COUNT($D$145:D145)+1)) -> 1 | Z146: =$B$50 -> Fre | AA146: =$A$50 -> Lori Meyer | AB146: =$L$50 -> 42 | AC146: =$V$50 -> 41 | AD146: =$W$50 -> 83 | AE146: =IF(AA146="","",IF(AD146>"a","",IF(AD146=AD145,AE145,COUNTA($AE$108:AE145)))) -> 2 | AH146: 6 | AI146: =$H$8 -> 4 | AJ146: =$H$138 -> 6.362068966 | AK146: =$H$139 -> 2.362068966 | AL146: =IF(AK146=AK145,AL145,COUNT($AL$143:AL145)+1) -> 3
A147: =$A$65 -> Hortonville | B147: =$X$68 -> 362 | D147: =IF(A147="","",IF(B147=B146,D146,COUNT($D$145:D146)+1)) -> 2 | Z147: =$B$44 -> FVL | AA147: =$A$44 -> Megan Glaeser | AB147: =$L$44 -> 41 | AC147: =$V$44 -> 43 | AD147: =$W$44 -> 84 | AE147: =IF(AA147="","",IF(AD147>"a","",IF(AD147=AD146,AE146,COUNTA($AE$108:AE146)))) -> 4 | AH147: 4 | AI147: =$F$8 -> 4 | AJ147: =$F$138 -> 6.120689655 | AK147: =$F$139 -> 2.120689655 | AL147: =IF(AK147=AK146,AL146,COUNT($AL$143:AL146)+1) -> 4
A148: =$A$33 -> DePere | B148: =$X$36 -> 367 | D148: =IF(A148="","",IF(B148=B147,D147,COUNT($D$145:D147)+1)) -> 3 | Z148: =$B$82 -> Mar | AA148: =$A$82 -> Kayla Thielen | AB148: =$L$82 -> 44 | AC148: =$V$82 -> 41 | AD148: =$W$82 -> 85 | AE148: =IF(AA148="","",IF(AD148>"a","",IF(AD148=AD147,AE147,COUNTA($AE$108:AE147)))) -> 5 | AH148: 13 | AI148: =$P$8 -> 4 | AJ148: =$P$138 -> 6.086206897 | AK148: =$P$139 -> 2.086206897 | AL148: =IF(AK148=AK147,AL147,COUNT($AL$143:AL147)+1) -> 5
A149: =$A$57 -> GB Preble | B149: =$X$60 -> 375 | D149: =IF(A149="","",IF(B149=B148,D148,COUNT($D$145:D148)+1)) -> 4 | Z149: =$B$74 -> Kim | AA149: =$A$74 -> Hannah Braun | AB149: =$L$74 -> 43 | AC149: =$V$74 -> 42 | AD149: =$W$74 -> 85 | AE149: =IF(AA149="","",IF(AD149>"a","",IF(AD149=AD148,AE148,COUNTA($AE$108:AE148)))) -> 5 | AH149: 10 | AI149: =$M$8 -> 5 | AJ149: =$M$138 -> 7.068965517 | AK149: =$M$139 -> 2.068965517 | AL149: =IF(AK149=AK148,AL148,COUNT($AL$143:AL148)+1) -> 6
A150: =$A$81 -> Marinette | B150: =$X$84 -> 377 | D150: =IF(A150="","",IF(B150=B149,D149,COUNT($D$145:D149)+1)) -> 5 | Z150: =$B$68 -> Hor | AA150: =$A$68 -> Bree Downie | AB150: =$L$68 -> 43 | AC150: =$V$68 -> 43 | AD150: =$W$68 -> 86 | AE150: =IF(AA150="","",IF(AD150>"a","",IF(AD150=AD149,AE149,COUNTA($AE$108:AE149)))) -> 7 | AH150: 3 | AI150: =$E$8 -> 4 | AJ150: =$E$138 -> 6.051724138 | AK150: =$E$139 -> 2.051724138 | AL150: =IF(AK150=AK149,AL149,COUNT($AL$143:AL149)+1) -> 7
A151: =$A$89 -> Pulaski | B151: =$X$92 -> 400 | D151: =IF(A151="","",IF(B151=B150,D150,COUNT($D$145:D150)+1)) -> 6 | Z151: =$B$34 -> DP | AA151: =$A$35 -> Sara Jorgenson | AB151: =$L$35 -> 40 | AC151: =$V$35 -> 47 | AD151: =$W$35 -> 87 | AE151: =IF(AA151="","",IF(AD151>"a","",IF(AD151=AD150,AE150,COUNTA($AE$108:AE150)))) -> 8 | AH151: 7 | AI151: =$I$8 -> 4 | AJ151: =$I$138 -> 6 | AK151: =$I$139 -> 2 | AL151: =IF(AK151=AK150,AL150,COUNT($AL$143:AL150)+1) -> 8
A152: =IF(OR($A$129="",$A$129="School Name"),"",$A$129) -> Wrightstown | B152: =IF(A152=""," ",$X$132) -> 404 | D152: =IF(A152="","",IF(B152=B151,D151,COUNT($D$145:D151)+1)) -> 7 | Z152: =$B$66 -> Hor | AA152: =$A$66 -> Chloe Crusan | AB152: =$L$66 -> 42 | AC152: =$V$66 -> 46 | AD152: =$W$66 -> 88 | AE152: =IF(AA152="","",IF(AD152>"a","",IF(AD152=AD151,AE151,COUNTA($AE$108:AE151)))) -> 9 | AH152: 1 | AI152: =$C$8 -> 5 | AJ152: =$C$138 -> 6.965517241 | AK152: =$C$139 -> 1.965517241 | AL152: =IF(AK152=AK151,AL151,COUNT($AL$143:AL151)+1) -> 9
A153: =$A$73 -> Kimberly | B153: =$X$76 -> 422 | D153: =IF(A153="","",IF(B153=B152,D152,COUNT($D$145:D152)+1)) -> 8 | Z153: =$B$43 -> FVL | AA153: =$A$42 -> Erika Priebe | AB153: =$L$42 -> 43 | AC153: =$V$42 -> 46 | AD153: =$W$42 -> 89 | AE153: =IF(AA153="","",IF(AD153>"a","",IF(AD153=AD152,AE152,COUNTA($AE$108:AE152)))) -> 10 | AH153: 16 | AI153: =$S$8 -> 4 | AJ153: =$S$138 -> 5.948275862 | AK153: =$S$139 -> 1.948275862 | AL153: =IF(AK153=AK152,AL152,COUNT($AL$143:AL152)+1) -> 10
A154: =$A$121 -> West DePere | B154: =$X$124 -> 424 | D154: =IF(A154="","",IF(B154=B153,D153,COUNT($D$145:D153)+1)) -> 9 | Z154: =$B$58 -> GBP | AA154: =$A$58 -> Sydney Onesti | AB154: =$L$58 -> 46 | AC154: =$V$58 -> 45 | AD154: =$W$58 -> 91 | AE154: =IF(AA154="","",IF(AD154>"a","",IF(AD154=AD153,AE153,COUNTA($AE$108:AE153)))) -> 11 | AH154: 15 | AI154: =$R$8 -> 4 | AJ154: =$R$138 -> 5.844827586 | AK154: =$R$139 -> 1.844827586 | AL154: =IF(AK154=AK153,AL153,COUNT($AL$143:AL153)+1) -> 11
A155: =$A$97 -> Seymour | B155: =$X$100 -> 426 | D155: =IF(A155="","",IF(B155=B154,D154,COUNT($D$145:D154)+1)) -> 10 | Z155: =$B$59 -> GBP | AA155: =$A$59 -> Katie Warpinski | AB155: =$L$59 -> 46 | AC155: =$V$59 -> 45 | AD155: =$W$59 -> 91 | AE155: =IF(AA155="","",IF(AD155>"a","",IF(AD155=AD154,AE154,COUNTA($AE$108:AE154)))) -> 11 | AH155: 11 | AI155: =$N$8 -> 3 | AJ155: =$N$138 -> 4.793103448 | AK155: =$N$139 -> 1.793103448 | AL155: =IF(AK155=AK154,AL154,COUNT($AL$143:AL154)+1) -> 12
A156: =$A$17 -> Ashwaubenon | B156: =$X$20 -> 427 | D156: =IF(A156="","",IF(B156=B155,D155,COUNT($D$145:D155)+1)) -> 11 | Z156: =IF(OR($A$129="",$A$129="School Name")," ",$B$130) -> Wri | AA156: =IF(OR($A$129="",$A$129="School Name"),"",$A$130) -> Victoria Draxler | AB156: =IF(OR($A$129="",$A$129="School Name"),"",$L$130) -> 48 | AC156: =IF(OR($A$129="",$A$129="School Name"),"",$V$130) -> 44 | AD156: =IF(OR($A$129="",$A$129="School Name"),"zz",$W$130) -> 92 | AE156: =IF(AA156="","",IF(AD156>"a","",IF(AD156=AD155,AE155,COUNTA($AE$108:AE155)))) -> 13 | AH156: 12 | AI156: =$O$8 -> 4 | AJ156: =$O$138 -> 5.74137931 | AK156: =$O$139 -> 1.74137931 | AL156: =IF(AK156=AK155,AL155,COUNT($AL$143:AL155)+1) -> 13
A157: =$A$49 -> Freedom | B157: =$X$52 -> 429 | D157: =IF(A157="","",IF(B157=B156,D156,COUNT($D$145:D156)+1)) -> 12 | Z157: =$B$60 -> GBP | AA157: =$A$60 -> Annie Schneider | AB157: =$L$60 -> 47 | AC157: =$V$60 -> 46 | AD157: =$W$60 -> 93 | AE157: =IF(AA157="","",IF(AD157>"a","",IF(AD157=AD156,AE156,COUNTA($AE$108:AE156)))) -> 14 | AH157: 8 | AI157: =$J$8 -> 3 | AJ157: =$J$138 -> 4.586206897 | AK157: =$J$139 -> 1.586206897 | AL157: =IF(AK157=AK156,AL156,COUNT($AL$143:AL156)+1) -> 14
A158: =$A$9 -> Appleton East | B158: =$X$12 -> 442 | D158: =IF(A158="","",IF(B158=B157,D157,COUNT($D$145:D157)+1)) -> 13 | Z158: =$B$67 -> Hor | AA158: =$A$67 -> Abby Nelson | AB158: =$L$67 -> 50 | AC158: =$V$67 -> 43 | AD158: =$W$67 -> 93 | AE158: =IF(AA158="","",IF(AD158>"a","",IF(AD158=AD157,AE157,COUNTA($AE$108:AE157)))) -> 14 | AH158: 5 | AI158: =$G$8 -> 3 | AJ158: =$G$138 -> 4.534482759 | AK158: =$G$139 -> 1.534482759 | AL158: =IF(AK158=AK157,AL157,COUNT($AL$143:AL157)+1) -> 15
A159: =$A$105 -> Shawano | B159: =$X$108 -> 458 | D159: =IF(A159="","",IF(B159=B158,D158,COUNT($D$145:D158)+1)) -> 14 | Z159: =$B$85 -> Mar | AA159: =$A$85 -> Lexi Bretl | AB159: =$L$85 -> 48 | AC159: =$V$85 -> 46 | AD159: =$W$85 -> 94 | AE159: =IF(AA159="","",IF(AD159>"a","",IF(AD159=AD158,AE158,COUNTA($AE$108:AE158)))) -> 16 | AH159: 17 | AI159: =$T$8 -> 3 | AJ159: =$T$138 -> 4.465517241 | AK159: =$T$139 -> 1.465517241 | AL159: =IF(AK159=AK158,AL158,COUNT($AL$143:AL158)+1) -> 16
A160: =$A$25 -> Bayport | B160: =$X$28 -> 479 | D160: =IF(A160="","",IF(B160=B159,D159,COUNT($D$145:D159)+1)) -> 15 | Z160: =$B$45 -> FVL | AA160: =$A$45 -> Alicia Gorges | AB160: =$L$45 -> 45 | AC160: =$V$45 -> 49 | AD160: =$W$45 -> 94 | AE160: =IF(AA160="","",IF(AD160>"a","",IF(AD160=AD159,AE159,COUNTA($AE$108:AE159)))) -> 16 | AH160: 2 | AI160: =$D$8 -> 4 | AJ160: =$D$138 -> 5.431034483 | AK160: =$D$139 -> 1.431034483 | AL160: =IF(AK160=AK159,AL159,COUNT($AL$143:AL159)+1) -> 17
A161: =$A$113 -> Waupaca | B161: =$X$116 -> 495 | D161: =IF(A161="","",IF(B161=B160,D160,COUNT($D$145:D160)+1)) -> 16 | Z161: =$B$18 -> Ash | AA161: =$A$18 -> Kayley Sjholm | AB161: =$L$18 -> 47 | AC161: =$V$18 -> 48 | AD161: =$W$18 -> 95 | AE161: =IF(AA161="","",IF(AD161>"a","",IF(AD161=AD160,AE160,COUNTA($AE$108:AE160)))) -> 18 | AH161: 14 | AI161: =$Q$8 -> 4 | AJ161: =$Q$138 -> 5.362068966 | AK161: =$Q$139 -> 1.362068966 | AL161: =IF(AK161=AK160,AL160,COUNT($AL$143:AL160)+1) -> 18
Z162: =$B$69 -> Hor | AA162: =$A$69 -> Abbey Karns | AB162: =$L$69 -> 51 | AC162: =$V$69 -> 44 | AD162: =$W$69 -> 95 | AE162: =IF(AA162="","",IF(AD162>"a","",IF(AD162=AD161,AE161,COUNTA($AE$108:AE161)))) -> 18 | AH162: Team | AI162: Results
Z163: =$B$114 -> Wau | AA163: =$A$114 -> Markie Ash | AB163: =$L$114 -> 46 | AC163: =$V$114 -> 49 | AD163: =$W$114 -> 95 | AE163: =IF(AA163="","",IF(AD163>"a","",IF(AD163=AD162,AE162,COUNTA($AE$108:AE162)))) -> 18 | AH163: School | AI163: Score | AJ163: Place
Z164: =$B$94 -> Pul | AA164: =$A$94 -> Madi Winter | AB164: =$L$94 -> 52 | AC164: =$V$94 -> 43 | AD164: =$W$94 -> 95 | AE164: =IF(AA164="","",IF(AD164>"a","",IF(AD164=AD163,AE163,COUNTA($AE$108:AE163)))) -> 18 | AH164: =A146 -> Fox Valley Luth | AI164: =B146 -> 350 | AJ164: =D146 -> 1
Z165: =$B$18 -> Ash | AA165: =$A$19 -> Breanna Schmit | AB165: =$L$19 -> 45 | AC165: =$V$19 -> 51 | AD165: =$W$19 -> 96 | AE165: =IF(AA165="","",IF(AD165>"a","",IF(AD165=AD164,AE164,COUNTA($AE$108:AE164)))) -> 22 | AH165: =A147 -> Hortonville | AI165: =B147 -> 362 | AJ165: =D147 -> 2
Z166: =$B$83 -> Mar | AA166: =$A$83 -> Hallie Olsen | AB166: =$L$83 -> 52 | AC166: =$V$83 -> 44 | AD166: =$W$83 -> 96 | AE166: =IF(AA166="","",IF(AD166>"a","",IF(AD166=AD165,AE165,COUNTA($AE$108:AE165)))) -> 22 | AH166: DePere | AI166: 367 | AJ166: 3
Z167: =$B$98 -> Sey | AA167: =$A$98 -> Anna Pesola | AB167: =$L$98 -> 49 | AC167: =$V$98 -> 47 | AD167: =$W$98 -> 96 | AE167: =IF(AA167="","",IF(AD167>"a","",IF(AD167=AD166,AE166,COUNTA($AE$108:AE166)))) -> 22 | AH167: GB Preble | AI167: 375 | AJ167: 4
Z168: =$B$34 -> DP | AA168: =$A$36 -> Maddie Brosteau | AB168: =$L$36 -> 49 | AC168: =$V$36 -> 49 | AD168: =$W$36 -> 98 | AE168: =IF(AA168="","",IF(AD168>"a","",IF(AD168=AD167,AE167,COUNTA($AE$108:AE167)))) -> 25 | AH168: Marinette | AI168: 377 | AJ168: 5
Z169: =$B$61 -> GBP | AA169: =$A$61 -> Kayley Ketter | AB169: =$L$61 -> 51 | AC169: =$V$61 -> 49 | AD169: =$W$61 -> 100 | AE169: =IF(AA169="","",IF(AD169>"a","",IF(AD169=AD168,AE168,COUNTA($AE$108:AE168)))) -> 26 | AH169: Pulaski | AI169: 400 | AJ169: 6
Z170: =$B$107 -> Sha | AA170: =$A$107 -> Brianna Zook | AB170: =$L$107 -> 48 | AC170: =$V$107 -> 52 | AD170: =$W$107 -> 100 | AE170: =IF(AA170="","",IF(AD170>"a","",IF(AD170=AD169,AE169,COUNTA($AE$108:AE169)))) -> 26 | AH170: Wrightstown | AI170: 404 | AJ170: 7
Z171: =$B$93 -> Pul | AA171: =$A$93 -> Maddy Process | AB171: =$L$93 -> 51 | AC171: =$V$93 -> 49 | AD171: =$W$93 -> 100 | AE171: =IF(AA171="","",IF(AD171>"a","",IF(AD171=AD170,AE170,COUNTA($AE$108:AE170)))) -> 26 | AH171: Kimberly | AI171: 422 | AJ171: 8
Z172: =IF(OR($A$129="",$A$129="School Name"),"",$B$131) -> Wri | AA172: =IF(OR($A$129="",$A$129="School Name"),"",$A$131) -> Emily Tetzlatt | AB172: =IF(OR($A$129="",$A$129="School Name"),"",$L$131) -> 53 | AC172: =IF(OR($A$129="",$A$129="School Name"),"",$V$131) -> 47 | AD172: =IF(OR($A$129="",$A$129="School Name"),"zz",$W$131) -> 100 | AE172: =IF(AA172="","",IF(AD172>"a","",IF(AD172=AD171,AE171,COUNTA($AE$108:AE171)))) -> 26 | AH172: West DePere | AI172: 424 | AJ172: 9
Z173: =$B$26 -> BP | AA173: =$A$26 -> Brianna Schermitzier | AB173: =$L$26 -> 49 | AC173: =$V$26 -> 52 | AD173: =$W$26 -> 101 | AE173: =IF(AA173="","",IF(AD173>"a","",IF(AD173=AD172,AE172,COUNTA($AE$108:AE172)))) -> 30 | AH173: Seymour | AI173: 426 | AJ173: 10
Z174: =$B$13 -> AE | AA174: =$A$13 -> Olivia Riechardt | AB174: =$L$13 -> 54 | AC174: =$V$13 -> 47 | AD174: =$W$13 -> 101 | AE174: =IF(AA174="","",IF(AD174>"a","",IF(AD174=AD173,AE173,COUNTA($AE$108:AE173)))) -> 30 | AH174: Ashwaubenon | AI174: 427 | AJ174: 11
Z175: =$B$92 -> Pul | AA175: =$A$92 -> Ally Tonn | AB175: =$L$92 -> 54 | AC175: =$V$92 -> 47 | AD175: =$W$92 -> 101 | AE175: =IF(AA175="","",IF(AD175>"a","",IF(AD175=AD174,AE174,COUNTA($AE$108:AE174)))) -> 30 | AH175: Freedom | AI175: 429 | AJ175: 12
Z176: =$B$84 -> Mar | AA176: =$A$84 -> Mariah Chenier | AB176: =$L$84 -> 50 | AC176: =$V$84 -> 52 | AD176: =$W$84 -> 102 | AE176: =IF(AA176="","",IF(AD176>"a","",IF(AD176=AD175,AE175,COUNTA($AE$108:AE175)))) -> 33 | AH176: Appleton East | AI176: 442 | AJ176: 13
Z177: =$B$34 -> DP | AA177: =$A$37 -> Olivia Kowalkowski | AB177: =$L$37 -> 52 | AC177: =$V$37 -> 51 | AD177: =$W$37 -> 103 | AE177: =IF(AA177="","",IF(AD177>"a","",IF(AD177=AD176,AE176,COUNTA($AE$108:AE176)))) -> 34 | AH177: Shawano | AI177: 458 | AJ177: 14
Z178: =$B$34 -> DP | AA178: =$A$38 -> Amanda Scott | AB178: =$L$38 -> 56 | AC178: =$V$38 -> 47 | AD178: =$W$38 -> 103 | AE178: =IF(AA178="","",IF(AD178>"a","",IF(AD178=AD177,AE177,COUNTA($AE$108:AE177)))) -> 34 | AH178: Bayport | AI178: 479 | AJ178: 15
Z179: =$B$123 -> WDP | AA179: =$A$123 -> Crystal Hill | AB179: =$L$123 -> 52 | AC179: =$V$123 -> 52 | AD179: =$W$123 -> 104 | AE179: =IF(AA179="","",IF(AD179>"a","",IF(AD179=AD178,AE178,COUNTA($AE$108:AE178)))) -> 36 | AH179: Waupaca | AI179: 495 | AJ179: 16
Z180: =$B$91 -> Pul | AA180: =$A$91 -> Emma Jonas | AB180: =$L$91 -> 48 | AC180: =$V$91 -> 56 | AD180: =$W$91 -> 104 | AE180: =IF(AA180="","",IF(AD180>"a","",IF(AD180=AD179,AE179,COUNTA($AE$108:AE179)))) -> 36
Z181: =$B$99 -> Sey | AA181: =$A$99 -> Gretchen Heins | AB181: =$L$99 -> 52 | AC181: =$V$99 -> 52 | AD181: =$W$99 -> 104 | AE181: =IF(AA181="","",IF(AD181>"a","",IF(AD181=AD180,AE180,COUNTA($AE$108:AE180)))) -> 36
Z182: =IF(OR($A$129="",$A$129="School Name"),"",$B$132) -> Wri | AA182: =IF(OR($A$129="",$A$129="School Name"),"",$A$132) -> Eden Schneider | AB182: =IF(OR($A$129="",$A$129="School Name"),"",$L$132) -> 50 | AC182: =IF(OR($A$129="",$A$129="School Name"),"",$V$132) -> 54 | AD182: =IF(OR($A$129="",$A$129="School Name"),"zz",$W$132) -> 104 | AE182: =IF(AA182="","",IF(AD182>"a","",IF(AD182=AD181,AE181,COUNTA($AE$108:AE181)))) -> 36
Z183: =$B$75 -> Kim | AA183: =$A$75 -> Hailey Russ | AB183: =$L$75 -> 47 | AC183: =$V$75 -> 58 | AD183: =$W$75 -> 105 | AE183: =IF(AA183="","",IF(AD183>"a","",IF(AD183=AD182,AE182,COUNTA($AE$108:AE182)))) -> 40 | AG183: School | AH183: Name | AI183: Out | AJ183: In | AK183: Score | AL183: Place
Z184: =$B$62 -> GBP | AA184: =$A$62 -> Rachael Revolinski | AB184: =$L$62 -> 56 | AC184: =$V$62 -> 49 | AD184: =$W$62 -> 105 | AE184: =IF(AA184="","",IF(AD184>"a","",IF(AD184=AD183,AE183,COUNTA($AE$108:AE183)))) -> 40 | AG184: =$Z$204 -> Sey | AH184: =$AA$204 -> Cassie Bain | AI184: =$AB$204 -> 57 | AJ184: =$AC$204 -> 60 | AK184: =$AD$204 -> 117 | AL184: =$AE$204 -> 59
Z185: =$B$126 -> WDP | AA185: =$A$126 -> Brooke Ambrosius | AB185: =$L$126 -> 51 | AC185: =$V$126 -> 54 | AD185: =$W$126 -> 105 | AE185: =IF(AA185="","",IF(AD185>"a","",IF(AD185=AD184,AE184,COUNTA($AE$108:AE184)))) -> 40 | AG185: =$Z$205 -> AE | AH185: =$AA$205 -> Jasmine Lee | AI185: =$AB$205 -> 57 | AJ185: =$AC$205 -> 63 | AK185: =$AD$205 -> 120 | AL185: =$AE$205 -> 62
Z186: =$B$86 -> Mar | AA186: =$A$86 -> Megan Phillips | AB186: =$L$86 -> 57 | AC186: =$V$86 -> 48 | AD186: =$W$86 -> 105 | AE186: =IF(AA186="","",IF(AD186>"a","",IF(AD186=AD185,AE185,COUNTA($AE$108:AE185)))) -> 40 | AG186: =$Z$206 -> Ash | AH186: =$AA$206 -> Mckenna Morrow | AI186: =$AB$206 -> 62 | AJ186: =$AC$206 -> 60 | AK186: =$AD$206 -> 122 | AL186: =$AE$206 -> 63
Z187: =$B$106 -> Sha | AA187: =$A$106 -> Julia Beck | AB187: =$L$106 -> 50 | AC187: =$V$106 -> 56 | AD187: =$W$106 -> 106 | AE187: =IF(AA187="","",IF(AD187>"a","",IF(AD187=AD186,AE186,COUNTA($AE$108:AE186)))) -> 44 | AG187: =$Z$207 -> AE | AH187: =$AA$207 -> Brianna Knigge | AI187: =$AB$207 -> 59 | AJ187: =$AC$207 -> 63 | AK187: =$AD$207 -> 122 | AL187: =$AE$207 -> 63
Z188: =$B$70 -> Hor | AA188: =$A$70 -> Halle Karns | AB188: =$L$70 -> 55 | AC188: =$V$70 -> 52 | AD188: =$W$70 -> 107 | AE188: =IF(AA188="","",IF(AD188>"a","",IF(AD188=AD187,AE187,COUNTA($AE$108:AE187)))) -> 45 | AG188: =$Z$208 -> Fre | AH188: =$AA$208 -> Payton Dorn | AI188: =$AB$208 -> 58 | AJ188: =$AC$208 -> 64 | AK188: =$AD$208 -> 122 | AL188: =$AE$208 -> 63
Z189: =$B$122 -> WDP | AA189: =$A$122 -> Abby Van De Hei | AB189: =$L$122 -> 52 | AC189: =$V$122 -> 55 | AD189: =$W$122 -> 107 | AE189: =IF(AA189="","",IF(AD189>"a","",IF(AD189=AD188,AE188,COUNTA($AE$108:AE188)))) -> 45 | AG189: =$Z$209 -> FVL | AH189: =$AA$209 -> Liz Santos | AI189: =$AB$209 -> 61 | AJ189: =$AC$209 -> 62 | AK189: =$AD$209 -> 123 | AL189: =$AE$209 -> 66
Z190: =$B$10 -> AE | AA190: =$A$10 -> Amanda Guzman | AB190: =$L$10 -> 58 | AC190: =$V$10 -> 49 | AD190: =$W$10 -> 107 | AE190: =IF(AA190="","",IF(AD190>"a","",IF(AD190=AD189,AE189,COUNTA($AE$108:AE189)))) -> 45 | AG190: =$Z$210 -> Sha | AH190: =$AA$210 -> Emily Smith | AI190: =$AB$210 -> 61 | AJ190: =$AC$210 -> 63 | AK190: =$AD$210 -> 124 | AL190: =$AE$210 -> 67
Z191: =$B$125 -> WDP | AA191: =$A$125 -> Payton Kellam | AB191: =$L$125 -> 55 | AC191: =$V$125 -> 53 | AD191: =$W$125 -> 108 | AE191: =IF(AA191="","",IF(AD191>"a","",IF(AD191=AD190,AE190,COUNTA($AE$108:AE190)))) -> 48 | AG191: =$Z$211 -> Fre | AH191: =$AA$211 -> Miranda Peterson | AI191: =$AB$211 -> 61 | AJ191: =$AC$211 -> 64 | AK191: =$AD$211 -> 125 | AL191: =$AE$211 -> 68
Z192: =IF(OR($A$129="",$A$129="School Name"),"",$B$134) -> Wri | AA192: =IF(OR($A$129="",$A$129="School Name"),"",$A$134) -> Grace Nemecek | AB192: =IF(OR($A$129="",$A$129="School Name"),"",$L$134) -> 54 | AC192: =IF(OR($A$129="",$A$129="School Name"),"",$V$134) -> 54 | AD192: =IF(OR($A$129="",$A$129="School Name"),"zz",$W$134) -> 108 | AE192: =IF(AA192="","",IF(AD192>"a","",IF(AD192=AD191,AE191,COUNTA($AE$108:AE191)))) -> 48 | AG192: =$Z$212 -> Sha | AH192: =$AA$212 -> Gabby Krueger | AI192: =$AB$212 -> 66 | AJ192: =$AC$212 -> 62 | AK192: =$AD$212 -> 128 | AL192: =$AE$212 -> 69
Z193: =$B$90 -> Pul | AA193: =$A$90 -> Cailin Cleary | AB193: =$L$90 -> 53 | AC193: =$V$90 -> 56 | AD193: =$W$90 -> 109 | AE193: =IF(AA193="","",IF(AD193>"a","",IF(AD193=AD192,AE192,COUNTA($AE$108:AE192)))) -> 50 | AG193: =$Z$213 -> Wau | AH193: =$AA$213 -> Alana Radley | AI193: =$AB$213 -> 63 | AJ193: =$AC$213 -> 66 | AK193: =$AD$213 -> 129 | AL193: =$AE$213 -> 70
Z194: =$B$51 -> Fre | AA194: =$A$51 -> Emily Swoboda | AB194: =$L$51 -> 57 | AC194: =$V$51 -> 52 | AD194: =$W$51 -> 109 | AE194: =IF(AA194="","",IF(AD194>"a","",IF(AD194=AD193,AE193,COUNTA($AE$108:AE193)))) -> 50 | AG194: =$Z$214 -> Wau | AH194: =$AA$214 -> Sydni Sondrol | AI194: =$AB$214 -> 69 | AJ194: =$AC$214 -> 60 | AK194: =$AD$214 -> 129 | AL194: =$AE$214 -> 70
Z195: =$B$102 -> Sey | AA195: =$A$102 -> Carissa Salter | AB195: =$L$102 -> 54 | AC195: =$V$102 -> 55 | AD195: =$W$102 -> 109 | AE195: =IF(AA195="","",IF(AD195>"a","",IF(AD195=AD194,AE194,COUNTA($AE$108:AE194)))) -> 50 | AG195: =$Z$215 -> Sey | AH195: =$AA$215 -> Kyla Ryan | AI195: =$AB$215 -> 66 | AJ195: =$AC$215 -> 65 | AK195: =$AD$215 -> 131 | AL195: =$AE$215 -> 72
Z196: =$B$124 -> WDP | AA196: =$A$124 -> Maddy Coppens | AB196: =$L$124 -> 52 | AC196: =$V$124 -> 58 | AD196: =$W$124 -> 110 | AE196: =IF(AA196="","",IF(AD196>"a","",IF(AD196=AD195,AE195,COUNTA($AE$108:AE195)))) -> 53 | AG196: =$Z$216 -> BP | AH196: =$AA$216 -> Madison Kostrrman | AI196: =$AB$216 -> 70 | AJ196: =$AC$216 -> 62 | AK196: =$AD$216 -> 132 | AL196: =$AE$216 -> 73
Z197: =$B$18 -> Ash | AA197: =$A$21 -> Lindsay Zabel | AB197: =$L$21 -> 57 | AC197: =$V$21 -> 57 | AD197: =$W$21 -> 114 | AE197: =IF(AA197="","",IF(AD197>"a","",IF(AD197=AD196,AE196,COUNTA($AE$108:AE196)))) -> 54 | AG197: =$Z$217 -> BP | AH197: =$AA$217 -> Kaela Kosterman | AI197: =$AB$217 -> 71 | AJ197: =$AC$217 -> 61 | AK197: =$AD$217 -> 132 | AL197: =$AE$217 -> 73
Z198: =$B$26 -> BP | AA198: =$A$27 -> Emme Hilbert | AB198: =$L$27 -> 57 | AC198: =$V$27 -> 57 | AD198: =$W$27 -> 114 | AE198: =IF(AA198="","",IF(AD198>"a","",IF(AD198=AD197,AE197,COUNTA($AE$108:AE197)))) -> 54 | AG198: =$Z$218 -> Sha | AH198: =$AA$218 -> Hannah Hass | AI198: =$AB$218 -> 66 | AJ198: =$AC$218 -> 67 | AK198: =$AD$218 -> 133 | AL198: =$AE$218 -> 75
Z199: =$B$14 -> AE | AA199: =$A$14 -> Annika Schumerth | AB199: =$L$14 -> 55 | AC199: =$V$14 -> 59 | AD199: =$W$14 -> 114 | AE199: =IF(AA199="","",IF(AD199>"a","",IF(AD199=AD198,AE198,COUNTA($AE$108:AE198)))) -> 54 | AG199: =$Z$219 -> Ash | AH199: =$AA$219 -> Zion Estano | AI199: =$AB$219 -> 69 | AJ199: =$AC$219 -> 68 | AK199: =$AD$219 -> 137 | AL199: =$AE$219 -> 76
Z200: =$B$76 -> Kim | AA200: =$A$76 -> Emma Larew | AB200: =$L$76 -> 58 | AC200: =$V$76 -> 57 | AD200: =$W$76 -> 115 | AE200: =IF(AA200="","",IF(AD200>"a","",IF(AD200=AD199,AE199,COUNTA($AE$108:AE199)))) -> 57 | AG200: =$Z$220 -> Wau | AH200: =$AA$220 -> Anna Ryder | AI200: =$AB$220 -> 76 | AJ200: =$AC$220 -> 66 | AK200: =$AD$220 -> 142 | AL200: =$AE$220 -> 77
Z201: =$B$52 -> Fre | AA201: =$A$52 -> Paige Fulller | AB201: =$L$52 -> 61 | AC201: =$V$52 -> 54 | AD201: =$W$52 -> 115 | AE201: =IF(AA201="","",IF(AD201>"a","",IF(AD201=AD200,AE200,COUNTA($AE$108:AE200)))) -> 57 | AG201: =$Z$221 -> BP | AH201: =$AA$221 -> 0 | AI201: =$AB$221 -> 0 | AJ201: =$AC$221 -> dq | AK201: =$AD$221 -> dq | AL201: =$AE$221 -> 
Z202: =$B$78 -> Kim | AA202: =$A$78 -> Eli Herbst | AB202: =$L$78 -> 56 | AC202: =$V$78 -> 61 | AD202: =$W$78 -> 117 | AE202: =IF(AA202="","",IF(AD202>"a","",IF(AD202=AD201,AE201,COUNTA($AE$108:AE201)))) -> 59 | AG202: =$Z$222 -> Wau | AH202: =$AA$222 -> 0 | AI202: =$AB$222 -> 0 | AJ202: =$AC$222 -> dq | AK202: =$AD$222 -> dq | AL202: =$AE$222 -> 
Z203: =$B$77 -> Kim | AA203: =$A$77 -> Kendra Schrieber | AB203: =$L$77 -> 60 | AC203: =$V$77 -> 57 | AD203: =$W$77 -> 117 | AE203: =IF(AA203="","",IF(AD203>"a","",IF(AD203=AD202,AE202,COUNTA($AE$108:AE202)))) -> 59 | AG203: =$Z$223 -> Wri | AH203: =$AA$223 -> Chloe Crossman | AI203: =$AB$223 -> 0 | AJ203: =$AC$223 -> dq | AK203: =$AD$223 -> dq | AL203: =$AE$223 -> 
Z204: =$B$100 -> Sey | AA204: =$A$100 -> Cassie Bain | AB204: =$L$100 -> 57 | AC204: =$V$100 -> 60 | AD204: =$W$100 -> 117 | AE204: =IF(AA204="","",IF(AD204>"a","",IF(AD204=AD203,AE203,COUNTA($AE$108:AE203)))) -> 59
Z205: =$B$11 -> AE | AA205: =$A$11 -> Jasmine Lee | AB205: =$L$11 -> 57 | AC205: =$V$11 -> 63 | AD205: =$W$11 -> 120 | AE205: =IF(AA205="","",IF(AD205>"a","",IF(AD205=AD204,AE204,COUNTA($AE$108:AE204)))) -> 62
Z206: =$B$18 -> Ash | AA206: =$A$20 -> Mckenna Morrow | AB206: =$L$20 -> 62 | AC206: =$V$20 -> 60 | AD206: =$W$20 -> 122 | AE206: =IF(AA206="","",IF(AD206>"a","",IF(AD206=AD205,AE205,COUNTA($AE$108:AE205)))) -> 63
Z207: =$B$12 -> AE | AA207: =$A$12 -> Brianna Knigge | AB207: =$L$12 -> 59 | AC207: =$V$12 -> 63 | AD207: =$W$12 -> 122 | AE207: =IF(AA207="","",IF(AD207>"a","",IF(AD207=AD206,AE206,COUNTA($AE$108:AE206)))) -> 63
Z208: =$B$54 -> Fre | AA208: =$A$54 -> Payton Dorn | AB208: =$L$54 -> 58 | AC208: =$V$54 -> 64 | AD208: =$W$54 -> 122 | AE208: =IF(AA208="","",IF(AD208>"a","",IF(AD208=AD207,AE207,COUNTA($AE$108:AE207)))) -> 63
Z209: =$B$43 -> FVL | AA209: =$A$46 -> Liz Santos | AB209: =$L$46 -> 61 | AC209: =$V$46 -> 62 | AD209: =$W$46 -> 123 | AE209: =IF(AA209="","",IF(AD209>"a","",IF(AD209=AD208,AE208,COUNTA($AE$108:AE208)))) -> 66
Z210: =$B$109 -> Sha | AA210: =$A$109 -> Emily Smith | AB210: =$L$109 -> 61 | AC210: =$V$109 -> 63 | AD210: =$W$109 -> 124 | AE210: =IF(AA210="","",IF(AD210>"a","",IF(AD210=AD209,AE209,COUNTA($AE$108:AE209)))) -> 67
Z211: =$B$53 -> Fre | AA211: =$A$53 -> Miranda Peterson | AB211: =$L$53 -> 61 | AC211: =$V$53 -> 64 | AD211: =$W$53 -> 125 | AE211: =IF(AA211="","",IF(AD211>"a","",IF(AD211=AD210,AE210,COUNTA($AE$108:AE210)))) -> 68
Z212: =$B$108 -> Sha | AA212: =$A$108 -> Gabby Krueger | AB212: =$L$108 -> 66 | AC212: =$V$108 -> 62 | AD212: =$W$108 -> 128 | AE212: =IF(AA212="","",IF(AD212>"a","",IF(AD212=AD211,AE211,COUNTA($AE$108:AE211)))) -> 69
Z213: =$B$115 -> Wau | AA213: =$A$115 -> Alana Radley | AB213: =$L$115 -> 63 | AC213: =$V$115 -> 66 | AD213: =$W$115 -> 129 | AE213: =IF(AA213="","",IF(AD213>"a","",IF(AD213=AD212,AE212,COUNTA($AE$108:AE212)))) -> 70
Z214: =$B$116 -> Wau | AA214: =$A$116 -> Sydni Sondrol | AB214: =$L$116 -> 69 | AC214: =$V$116 -> 60 | AD214: =$W$116 -> 129 | AE214: =IF(AA214="","",IF(AD214>"a","",IF(AD214=AD213,AE213,COUNTA($AE$108:AE213)))) -> 70
Z215: =$B$101 -> Sey | AA215: =$A$101 -> Kyla Ryan | AB215: =$L$101 -> 66 | AC215: =$V$101 -> 65 | AD215: =$W$101 -> 131 | AE215: =IF(AA215="","",IF(AD215>"a","",IF(AD215=AD214,AE214,COUNTA($AE$108:AE214)))) -> 72
Z216: =$B$26 -> BP | AA216: =$A$28 -> Madison Kostrrman | AB216: =$L$28 -> 70 | AC216: =$V$28 -> 62 | AD216: =$W$28 -> 132 | AE216: =IF(AA216="","",IF(AD216>"a","",IF(AD216=AD215,AE215,COUNTA($AE$108:AE215)))) -> 73
Z217: =$B$26 -> BP | AA217: =$A$29 -> Kaela Kosterman | AB217: =$L$29 -> 71 | AC217: =$V$29 -> 61 | AD217: =$W$29 -> 132 | AE217: =IF(AA217="","",IF(AD217>"a","",IF(AD217=AD216,AE216,COUNTA($AE$108:AE216)))) -> 73
... 59 more rows
